Workbook

Sheet screening_survival
A1: 0 dpt
A2: biol repl | B2: H2O | C2: egfp (-) | D2: vATPaseE (+) | E2: alas | F2: JHBP | G2: mesh
A3: 1 | B3: 10 | C3: 10 | D3: 10 | E3: 10 | F3: 10 | G3: 10
A4: 2 | B4: 10 | C4: 10 | D4: 10 | E4: 10 | F4: 10 | G4: 10
A5: 3 | B5: 10 | C5: 10 | D5: 10 | E5: 10 | F5: 10 | G5: 10
A6: 4 | B6: 10 | C6: 10 | D6: 10 | E6: 10 | F6: 10 | G6: 10
A7: average | B7: =AVERAGE(B3:B6) -> 10 | C7: =AVERAGE(C3:C6) -> 10 | D7: 10 | E7: 10 | F7: 10 | G7: 10
A9: 1 dpt
A10: biol repl | B10: H2O | C10: egfp (-) | D10: vATPaseE (+) | E10: alas | F10: JHBP | G10: mesh
A11: 1 | B11: 10 | C11: 10 | D11: 10 | E11: 10 | F11: 10 | G11: 10
A12: 2 | B12: 10 | C12: 10 | D12: 10 | E12: 10 | F12: 10 | G12: 10
A13: 3 | B13: 10 | C13: 10 | D13: 10 | E13: 9 | F13: 10 | G13: 9
A14: 4 | B14: 10 | C14: 10 | D14: 10 | E14: 9 | F14: 10 | G14: 10
A15: average | B15: =AVERAGE(B11:B14) -> 10 | C15: =AVERAGE(C11:C14) -> 10 | D15: =AVERAGE(D11:D14) -> 10 | E15: =AVERAGE(E11:E14) -> 9.5 | F15: =AVERAGE(F11:F14) -> 10 | G15: =AVERAGE(G11:G14) -> 9.75
A17: 2 dpt
A18: biol repl | B18: H2O | C18: egfp (-) | D18: vATPaseE (+) | E18: alas | F18: JHBP | G18: mesh
A19: 1 | B19: 10 | C19: 10 | D19: 10 | E19: 10 | F19: 10 | G19: 10
A20: 2 | B20: 10 | C20: 8 | D20: 10 | E20: 10 | F20: 10 | G20: 10
A21: 3 | B21: 10 | C21: 9 | D21: 10 | E21: 9 | F21: 10 | G21: 9
A22: 4 | B22: 10 | C22: 10 | D22: 10 | E22: 9 | F22: 10 | G22: 8
A23: average | B23: =AVERAGE(B19:B22) -> 10 | C23: =AVERAGE(C19:C22) -> 9.25 | D23: =AVERAGE(D19:D22) -> 10 | E23: =AVERAGE(E19:E22) -> 9.5 | F23: =AVERAGE(F19:F22) -> 10 | G23: =AVERAGE(G19:G22) -> 9.25
A25: 3 dpt
A26: biol repl | B26: H2O | C26: egfp (-) | D26: vATPaseE (+) | E26: alas | F26: JHBP | G26: mesh
A27: 1 | B27: 10 | C27: 9 | D27: 10 | E27: 10 | F27: 10 | G27: 10
A28: 2 | B28: 10 | C28: 7 | D28: 10 | E28: 9 | F28: 10 | G28: 8
A29: 3 | B29: 10 | C29: 9 | D29: 10 | E29: 9 | F29: 10 | G29: 8
A30: 4 | B30: 10 | C30: 9 | D30: 9 | E30: 9 | F30: 10 | G30: 8
A31: average | B31: =AVERAGE(B27:B30) -> 10 | C31: =AVERAGE(C27:C30) -> 8.5 | D31: =AVERAGE(D27:D30) -> 9.75 | E31: =AVERAGE(E27:E30) -> 9.25 | F31: =AVERAGE(F27:F30) -> 10 | G31: =AVERAGE(G27:G30) -> 8.5
A33: 4 dpt
A34: biol repl | B34: H2O | C34: egfp (-) | D34: vATPaseE (+) | E34: alas | F34: JHBP | G34: mesh
A35: 1 | B35: 9 | C35: 8 | D35: 9 | E35: 10 | F35: 9 | G35: 4 | H35: (4 group middle size larvae were sampled for silencing confirmation)
A36: 2 | B36: 10 | C36: 7 | D36: 10 | E36: 8 | F36: 9 | G36: 6
A37: 3 | B37: 9 | C37: 9 | D37: 9 | E37: 8 | F37: 9 | G37: 4
A38: 4 | B38: 10 | C38: 8 | D38: 7 | E38: 9 | F38: 10 | G38: 5
A39: average | B39: =AVERAGE(B35:B38) -> 9.5 | C39: =AVERAGE(C35:C38) -> 8 | D39: =AVERAGE(D35:D38) -> 8.75 | E39: =AVERAGE(E35:E38) -> 8.75 | F39: =AVERAGE(F35:F38) -> 9.25 | G39: =AVERAGE(G35:G38) -> 4.75
A41: 5 dpt
A42: biol repl | B42: H2O | C42: egfp (-) | D42: vATPaseE (+) | E42: alas | F42: JHBP | G42: mesh
A43: 1 | B43: 5 | C43: 4 | D43: 3 | E43: 5 | F43: 5 | G43: 0
A44: 2 | B44: 10 | C44: 6 | D44: 10 | E44: 8 | F44: 9 | G44: 2
A45: 3 | B45: 8 | C45: 9 | D45: 6 | E45: 8 | F45: 8 | G45: 2
A46: 4 | B46: 10 | C46: 8 | D46: 3 | E46: 6 | F46: 9 | G46: 1
A47: average | B47: =AVERAGE(B43:B46) -> 8.25 | C47: =AVERAGE(C43:C46) -> 6.75 | D47: =AVERAGE(D43:D46) -> 5.5 | E47: =AVERAGE(E43:E46) -> 6.75 | F47: =AVERAGE(F43:F46) -> 7.75 | G47: =AVERAGE(G43:G46) -> 1.25
A49: 6 dpt
A50: biol repl | B50: H2O | C50: egfp (-) | D50: vATPaseE (+) | E50: alas | F50: JHBP | G50: mesh
A51: 1 | B51: 5 | C51: 4 | D51: 1 | E51: 4 | F51: 5 | G51: 0
A52: 2 | B52: 10 | C52: 6 | D52: 6 | E52: 6 | F52: 9 | G52: 0
A53: 3 | B53: 8 | C53: 9 | D53: 3 | E53: 8 | F53: 7 | G53: 0
A54: 4 | B54: 9 | C54: 8 | D54: 2 | E54: 6 | F54: 9 | G54: 1
A55: average | B55: =AVERAGE(B51:B54) -> 8 | C55: =AVERAGE(C51:C54) -> 6.75 | D55: =AVERAGE(D51:D54) -> 3 | E55: =AVERAGE(E51:E54) -> 6 | F55: =AVERAGE(F51:F54) -> 7.5 | G55: =AVERAGE(G51:G54) -> 0.25
A57: 7 dpt
A58: biol repl | B58: H2O | C58: egfp (-) | D58: vATPaseE (+) | E58: alas | F58: JHBP | G58: mesh
A59: 1 | B59: 5 | C59: 4 | D59: 1 | E59: 4 | F59: 4 | G59: 0
A60: 2 | B60: 10 | C60: 6 | D60: 3 | E60: 4 | F60: 9 | G60: 0
A61: 3 | B61: 8 | C61: 8 | D61: 3 | E61: 6 | F61: 7 | G61: 0
A62: 4 | B62: 9 | C62: 8 | D62: 0 | E62: 7 | F62: 9 | G62: 1
A63: average | B63: =AVERAGE(B59:B62) -> 8 | C63: =AVERAGE(C59:C62) -> 6.5 | D63: =AVERAGE(D59:D62) -> 1.75 | E63: =AVERAGE(E59:E62) -> 5.25 | F63: =AVERAGE(F59:F62) -> 7.25 | G63: =AVERAGE(G59:G62) -> 0.25
A65: 8 dpt
A66: biol repl | B66: H2O | C66: egfp (-) | D66: vATPaseE (+) | E66: alas | F66: JHBP | G66: mesh
A67: 1 | B67: 5 | C67: 3 | D67: 1 | E67: 4 | F67: 4 | G67: 0
A68: 2 | B68: 10 | C68: 6 | D68: 1 | E68: 4 | F68: 8 | G68: 0
A69: 3 | B69: 6 | C69: 7 | D69: 0 | E69: 6 | F69: 7 | G69: 0
A70: 4 | B70: 9 | C70: 8 | D70: 0 | E70: 6 | F70: 8 | G70: 0
A71: average | B71: =AVERAGE(B67:B70) -> 7.5 | C71: =AVERAGE(C67:C70) -> 6 | D71: =AVERAGE(D67:D70) -> 0.5 | E71: =AVERAGE(E67:E70) -> 5 | F71: =AVERAGE(F67:F70) -> 6.75 | G71: =AVERAGE(G67:G70) -> 0
A73: 9 dpt
A74: biol repl | B74: H2O | C74: egfp (-) | D74: vATPaseE (+) | E74: alas | F74: JHBP | G74: mesh
A75: 1 | B75: 3 | C75: 3 | D75: 0 | E75: 4 | F75: 3 | G75: 0
A76: 2 | B76: 9 | C76: 6 | D76: 1 | E76: 2 | F76: 8 | G76: 0
A77: 3 | B77: 6 | C77: 7 | D77: 0 | E77: 6 | F77: 5 | G77: 0
A78: 4 | B78: 8 | C78: 6 | D78: 0 | E78: 6 | F78: 6 | G78: 0
A79: average | B79: =AVERAGE(B75:B78) -> 6.5 | C79: =AVERAGE(C75:C78) -> 5.5 | D79: =AVERAGE(D75:D78) -> 0.25 | E79: =AVERAGE(E75:E78) -> 4.5 | F79: =AVERAGE(F75:F78) -> 5.5 | G79: =AVERAGE(G75:G78) -> 0
A81: 10 dpt
A82: biol repl | B82: H2O | C82: egfp (-) | D82: vATPaseE (+) | E82: alas | F82: JHBP | G82: mesh
A83: 1 | B83: 3 | C83: 3 | D83: 0 | E83: 4 | F83: 3 | G83: 0
A84: 2 | B84: 8 | C84: 6 | D84: 0 | E84: 2 | F84: 8 | G84: 0
A85: 3 | B85: 6 | C85: 7 | D85: 0 | E85: 6 | F85: 6 | G85: 0
A86: 4 | B86: 7 | C86: 5 | D86: 0 | E86: 5 | F86: 6 | G86: 0
A87: average | B87: =AVERAGE(B83:B86) -> 6 | C87: =AVERAGE(C83:C86) -> 5.25 | D87: 0 | E87: 4.25 | F87: 5.75 | G87: 0
A89: 11 dpt
A90: biol repl | B90: H2O | C90: egfp (-) | D90: vATPaseE (+) | E90: alas | F90: JHBP | G90: mesh
A91: 1 | B91: 2 | C91: 3 | D91: 0 | E91: 4 | F91: 3 | G91: 0
A92: 2 | B92: 7 | C92: 6 | D92: 0 | E92: 2 | F92: 8 | G92: 0
A93: 3 | B93: 5 | C93: 7 | D93: 0 | E93: 6 | F93: 6 | G93: 0
A94: 4 | B94: 7 | C94: 5 | D94: 0 | E94: 4 | F94: 6 | G94: 0
A95: average | B95: =AVERAGE(B91:B94) -> 5.25 | C95: =AVERAGE(C91:C94) -> 5.25 | D95: 0 | E95: 4 | F95: 5.75 | G95: 0
A97: 12 dpt
A98: biol repl | B98: H2O | C98: egfp (-) | D98: vATPaseE (+) | E98: alas | F98: JHBP | G98: mesh
A99: 1 | B99: 2 | C99: 3 | D99: 0 | E99: 4 | F99: 3 | G99: 0
A100: 2 | B100: 6 | C100: 6 | D100: 0 | E100: 2 | F100: 8 | G100: 0
A101: 3 | B101: 4 | C101: 7 | D101: 0 | E101: 6 | F101: 6 | G101: 0
A102: 4 | B102: 7 | C102: 5 | D102: 0 | E102: 4 | F102: 5 | G102: 0
A103: average | B103: =AVERAGE(B99:B102) -> 4.75 | C103: =AVERAGE(C99:C102) -> 5.25 | D103: 0 | E103: 4 | F103: 5.5 | G103: 0
A105: 14 dpt
A106: biol repl | B106: H2O | C106: egfp (-) | D106: vATPaseE (+) | E106: alas | F106: JHBP | G106: mesh
A107: 1 | B107: 2 | C107: 3 | D107: 0 | E107: 3 | F107: 2 | G107: 0
A108: 2 | B108: 6 | C108: 6 | D108: 0 | E108: 2 | F108: 7 | G108: 0
A109: 3 | B109: 4 | C109: 7 | D109: 0 | E109: 6 | F109: 5 | G109: 0
A110: 4 | B110: 7 | C110: 5 | D110: 0 | E110: 3 | F110: 5 | G110: 0
A111: average | B111: =AVERAGE(B107:B110) -> 4.75 | C111: =AVERAGE(C107:C110) -> 5.25 | D111: 0 | E111: 3.5 | F111: 4.75 | G111: 0
A113: 16 dpt
A114: biol repl | B114: H2O | C114: egfp (-) | D114: vATPaseE (+) | E114: alas | F114: JHBP | G114: mesh
A115: 1 | B115: 2 | C115: 3 | D115: 0 | E115: 3 | F115: 2 | G115: 0
A116: 2 | B116: 6 | C116: 6 | D116: 0 | E116: 2 | F116: 7 | G116: 0
A117: 3 | B117: 4 | C117: 7 | D117: 0 | E117: 6 | F117: 5 | G117: 0
A118: 4 | B118: 7 | C118: 5 | D118: 0 | E118: 3 | F118: 5 | G118: 0
A119: average | B119: =AVERAGE(B115:B118) -> 4.75 | C119: =AVERAGE(C115:C118) -> 5.25 | D119: 0 | E119: 3.5 | F119: 4.75 | G119: 0
A121: 18 dpt
A122: biol repl | B122: H2O | C122: egfp (-) | D122: vATPaseE (+) | E122: alas | F122: JHBP | G122: mesh
A123: 1 | B123: 2 | C123: 3 | D123: 0 | E123: 3 | F123: 2 | G123: 0
A124: 2 | B124: 6 | C124: 6 | D124: 0 | E124: 1 | F124: 7 | G124: 0
A125: 3 | B125: 4 | C125: 7 | D125: 0 | E125: 6 | F125: 5 | G125: 0
A126: 4 | B126: 7 | C126: 5 | D126: 0 | E126: 3 | F126: 5 | G126: 0
A127: average | B127: =AVERAGE(B123:B126) -> 4.75 | C127: =AVERAGE(C123:C126) -> 5.25 | D127: 0 | E127: 3.25 | F127: 4.75 | G127: 0

Sheet screening_weighing
A1: 3 dpt | B1: BIOL REPL 1 WILL BE USED FOR qPCR sampling at 4 dpt | K1: mean larval mass | Q1: mass se | AY1: survival % Kaplan-Meier plot
A2: biol repl | B2: larva No | C2: H2O | D2: egfp (-) | E2: vATPaseE (+) | F2: alas | G2: JHBP | H2: mesh | J2: dpt | K2: water (blank control) | L2: dsEGFP (neg. control) | M2: dsvATPaseE (pos. control) | N2: dsALAS | O2: dsJHBP | P2: dsMESH | Q2: water (blank control) | R2: dsEGFP (neg. control) | S2: dsvATPaseE (pos. control) | T2: dsALAS | U2: dsJHBP | V2: dsMESH | AX2: dpt | AY2: water (blank control) | AZ2: dsEGFP (neg. control) | BA2: dsvATPaseE (pos. control) | BB2: dsALAS | BC2: dsJHBP | BD2: dsMESH
A3: 1 | B3: 1 | C3: 7 | D3: 6 | E3: 4 | F3: 4 | G3: 3 | H3: 3 | J3: 3 | K3: =C43 -> 9.7 | L3: =D43 -> 9.794117647 | M3: 7.461538462 | N3: 8.810810811 | O3: 9.5 | P3: 6 | Q3: =C45 -> 0.487273945 | R3: =D45 -> 0.4133737977 | S3: 0.3766999257 | T3: 0.459223133 | U3: 0.4613247368 | V3: 0.4100997661 | AX3: 0 | AY3: 1 | AZ3: 1 | BA3: 1 | BB3: 1 | BC3: 1 | BD3: 1
A4: 1 | B4: 2 | C4: 8 | D4: 7 | E4: 7 | F4: 5 | G4: 7 | H4: 4 | J4: 4 | K4: =C97 -> 16.81578947 | L4: =D97 -> 18.71875 | M4: 9.657142857 | N4: 16.71428571 | O4: 15.24324324 | P4: 6.210526316 | Q4: =C99 -> 0.9641235084 | R4: =D99 -> 1.042820597 | S4: 0.6288912479 | T4: 1.235844215 | U4: 0.7758556257 | V4: 0.802044172 | AX4: =AX5-0.0001 -> 2.9999 | AY4: =AY3 -> 1 | AZ4: =AZ3 -> 1 | BA4: 1 | BB4: 1 | BC4: 1 | BD4: 1
A5: 1 | B5: 3 | C5: 8 | D5: 7 | E5: 8 | F5: 5 | G5: 8 | H5: 4 | J5: 5 | K5: =C151 -> 29.75757576 | L5: =D151 -> 29.44444444 | M5: 9.409090909 | N5: 27.19230769 | O5: 24.64516129 | P5: 8.4 | Q5: =+C153 -> 2.493752716 | R5: =+D153 -> 1.830611811 | S5: 0.5673177653 | T5: 2.016057335 | U5: 1.633870879 | V5: 1.011050059 | AX5: 3 | AY5: 1 | AZ5: 0.85 | BA5: 0.975 | BB5: 0.925 | BC5: 1 | BD5: 0.85
A6: 1 | B6: 4 | C6: 10 | D6: 8 | E6: 8 | F6: 7 | G6: 9 | H6: 4 | J6: 6 | K6: =C205 -> 36.15625 | L6: =D205 -> 36.85185185 | M6: 9.333333333 | N6: 33.41666667 | O6: 32.33333333 | P6: 16 | Q6: =+C207 -> 2.319895783 | R6: =+D207 -> 2.117642468 | S6: 0.5141106538 | T6: 2.957393366 | U6: 1.817503937 | AX6: =AX7-0.0001 -> 3.9999 | AY6: =AY5 -> 1 | AZ6: 0.85 | BA6: 0.975 | BB6: 0.925 | BC6: 1 | BD6: 0.85
A7: 1 | B7: 5 | C7: 10 | D7: 9 | E7: 8 | F7: 7 | G7: 10 | H7: 4 | J7: 7 | K7: =C259 -> 47.75 | L7: =D259 -> 42.80769231 | M7: 8 | N7: 36.76190476 | O7: 38.68965517 | P7: 14 | Q7: =+C261 -> 3.359307404 | R7: =+D261 -> 2.645759387 | S7: 0.3600411499 | T7: 4.366827211 | U7: 2.263453363 | AX7: 4 | AY7: 0.95 | AZ7: 0.8 | BA7: 0.875 | BB7: 0.875 | BC7: 0.925 | BD7: 0.475
A8: 1 | B8: 6 | C8: 10 | D8: 11 | E8: 9 | F8: 9 | G8: 10 | H8: 5 | J8: 8 | K8: =+C313 -> 57.16666667 | L8: =+D313 -> 52.625 | M8: 10.5 | N8: 42.45 | O8: 45.18518519 | Q8: =+C315 -> 4.205015099 | R8: =+D315 -> 3.396791787 | S8: 0.1178511302 | T8: 4.992238127 | U8: 2.997162845 | AX8: =AX9-0.0001 -> 4.9999 | AY8: =AY7 -> 0.95 | AZ8: 0.8 | BA8: 0.875 | BB8: 0.875 | BC8: 0.925 | BD8: 0.475
A9: 1 | B9: 7 | C9: 10 | D9: 11 | E9: 9 | F9: 9 | G9: 11 | H9: 5 | J9: 9 | K9: =+C367 -> 81.88461538 | L9: =+D367 -> 65.68181818 | M9: 10 | N9: 49.38888889 | O9: 57.82608696 | Q9: =+C369 -> 5.930959623 | R9: =+D369 -> 4.251481648 | T9: 6.702145518 | U9: 3.558902685 | AX9: 5 | AY9: 0.9166666667 | AZ9: 0.75 | BA9: 0.6111111111 | BB9: 0.7222222222 | BC9: 0.8611111111 | BD9: 0.1388888889
A10: 1 | B10: 8 | C10: 10 | D10: 12 | E10: 10 | F10: 10 | G10: 12 | H10: 6 | J10: 10 | K10: =+C421 -> 100.7826087 | L10: =+D421 -> 79.80952381 | N10: 45.8 | O10: 68.73913043 | Q10: =+C423 -> 7.579037498 | R10: =+D423 -> 5.063655642 | T10: 5.397015636 | U10: 4.991967637 | AX10: =AX11-0.0001 -> 5.9999 | AY10: =AY9 -> 0.9166666667 | AZ10: =AZ9 -> 0.75 | BA10: =BA9 -> 0.6111111111 | BB10: =BB9 -> 0.7222222222 | BC10: =BC9 -> 0.8611111111 | BD10: =BD9 -> 0.1388888889
A11: 1 | B11: 9 | C11: 12 | D11: 16 | E11: 10 | F11: 10 | G11: 12 | H11: 7 | J11: 11 | K11: =+C475 -> 119.9375 | L11: =+D475 -> 94.5 | N11: 46.15384615 | O11: 76.17391304 | Q11: =+C477 -> 7.755396866 | R11: =+D477 -> 6.117633415 | T11: 3.210836797 | U11: 5.949631211 | AX11: 6 | AY11: 0.8888888889 | AZ11: 0.75 | BA11: 0.3333333333 | BB11: 0.6666666667 | BC11: 0.8333333333 | BD11: 0.02777777778
A12: 1 | B12: 10 | C12: 17 | D12: dead | E12: 12 | F12: 14 | G12: 15 | H12: 8 | J12: 12 | K12: =+C529 -> 110.3333333 | L12: =+D529 -> 103.8125 | N12: 50.15384615 | O12: 80.38888889 | Q12: =+C531 -> 7.941627317 | R12: =+D531 -> 5.567837119 | T12: 3.521656645 | U12: 6.016083805 | AX12: =AX13-0.0001 -> 6.9999 | AY12: =AY11 -> 0.8888888889 | AZ12: =AZ11 -> 0.75 | BA12: =BA11 -> 0.3333333333 | BB12: =BB11 -> 0.6666666667 | BC12: =BC11 -> 0.8333333333 | BD12: =BD11 -> 0.02777777778
A13: 2 | B13: 1 | C13: 5 | D13: 5 | E13: 2 | F13: 3 | G13: 7 | H13: 2 | J13: 14 | K13: =+C583 -> 95 | L13: =+D583 -> 97.69230769 | N13: 60.90909091 | O13: 94.2 | Q13: =+C585 -> 6.18241233 | R13: =+D585 -> 4.980696355 | T13: 5.256453465 | U13: 6.651742555 | AX13: 7 | AY13: 0.8888888889 | AZ13: 0.7222222222 | BA13: 0.1944444444 | BB13: 0.5833333333 | BC13: 0.8055555556 | BD13: 0.02777777778
A14: 2 | B14: 2 | C14: 5 | D14: 6 | E14: 5 | F14: 7 | G14: 7 | H14: 4 | J14: 16 | K14: =+C637 -> 85.5 | L14: =+D637 -> 83.4 | N14: 57.625 | O14: 77.6 | Q14: =+C639 -> 3.653385036 | R14: =+D639 -> 5.047826815 | T14: 4.132658835 | U14: 6.890613583 | W14: FROM HERE ON DON'T DRAW GRAPH BECAUSE LARVAE START PUPATION IN ALL GROUPS! | AX14: =AX15-0.0001 -> 7.9999 | AY14: =AY13 -> 0.8888888889 | AZ14: =AZ13 -> 0.7222222222 | BA14: =BA13 -> 0.1944444444 | BB14: =BB13 -> 0.5833333333 | BC14: =BC13 -> 0.8055555556 | BD14: =BD13 -> 0.02777777778
A15: 2 | B15: 3 | C15: 7 | D15: 6 | E15: 5 | F15: 7 | G15: 7 | H15: 4 | J15: 18 | K15: =+C691 -> 101 | L15: =+D691 -> 62 | N15: 59.5 | O15: 61.5 | Q15: =+C693 -> 0.4714045208 | R15: =+D693 -> 1.364225462 | T15: 2.676544206 | U15: 3.395258131 | AX15: 8 | AY15: 0.8333333333 | AZ15: 0.6666666667 | BA15: 0.05555555556 | BB15: 0.5555555556 | BC15: 0.75 | BD15: 0
A16: 2 | B16: 4 | C16: 7 | D16: 10 | E16: 7 | F16: 8 | G16: 7 | H16: 5 | J16: 20 | K16: =+C745 -> 107 | L16: =+D745 -> 69 | N16: 51.8 | O16: 51 | Q16: =+C747 -> 2.828427125 | R16: =+D747 -> 2.592724864 | T16: 2.209197944 | U16: 2.020725942 | AX16: =AX17-0.0001 -> 8.9999 | AY16: =AY15 -> 0.8333333333 | AZ16: =AZ15 -> 0.6666666667 | BA16: =BA15 -> 0.05555555556 | BB16: =BB15 -> 0.5555555556 | BC16: =BC15 -> 0.75 | BD16: =BD15 -> 0
A17: 2 | B17: 5 | C17: 8 | D17: 11 | E17: 7 | F17: 10 | G17: 7 | H17: 5 | J17: 22 | K17: =+C799 -> 103 | L17: =+D799 -> 64.5 | N17: 49 | O17: 48.66666667 | Q17: =+C801 -> 4.006938427 | R17: =+D801 -> 2.003469213 | T17: 1.569382988 | U17: 2.551325001 | AX17: 9 | AY17: 0.7222222222 | AZ17: 0.6111111111 | BA17: 0.02777777778 | BB17: 0.5 | BC17: 0.6388888889 | BD17: 0
A18: 2 | B18: 6 | C18: 9 | D18: 12 | E18: 7 | F18: 10 | G18: 9 | H18: 9 | J18: 24 | K18: =+C853 -> 103.5 | L18: =+D853 -> 72 | N18: 49.25 | O18: 37.5 | Q18: =+C855 -> 2.474873734 | R18: =+D855 -> 2.592724864 | T18: 2.661018324 | U18: 0.8249579114 | AX18: =AX19-0.0001 -> 9.9999 | AY18: =AY17 -> 0.7222222222 | AZ18: =AZ17 -> 0.6111111111 | BA18: =BA17 -> 0.02777777778 | BB18: =BB17 -> 0.5 | BC18: =BC17 -> 0.6388888889 | BD18: =BD17 -> 0
A19: 2 | B19: 7 | C19: 10 | D19: 15 | E19: 7 | F19: 12 | G19: 10 | H19: 9 | J19: 26 | K19: =+C907 -> 96 | L19: =+D907 -> 68.5 | N19: 49 | O19: 37 | Q19: =+C909 ->  | R19: =+D909 -> 2.474873734 | T19: 3.329164059 | AX19: 10 | AY19: 0.6666666667 | AZ19: 0.5833333333 | BA19: 0 | BB19: 0.4722222222 | BC19: 0.6388888889 | BD19: 0
A20: 2 | B20: 8 | C20: 11 | D20: dead | E20: 8 | F20: 13 | G20: 10 | H20: 10 | J20: 28 | K20: =+C961 -> 115 | L20: =+D961 -> 72 | N20: 83 | Q20: =+C963 ->  | R20: =+D963 -> 3.299831646 | AX20: =AX21-0.0001 -> 10.9999 | AY20: =AY19 -> 0.6666666667 | AZ20: =AZ19 -> 0.5833333333 | BA20: =BA19 -> 0 | BB20: =BB19 -> 0.4722222222 | BC20: =BC19 -> 0.6388888889 | BD20: =BD19 -> 0
A21: 2 | B21: 9 | C21: 11 | D21: dead | E21: 10 | F21: 15 | G21: 11 | H21: dead | J21: 30 | K21: =+C1015 -> 83 | L21: =+D1015 -> 73.5 | N21: 65 | Q21: =+C1017 ->  | R21: =+D1017 -> 3.653385036 | AX21: 11 | AY21: 0.5833333333 | AZ21: 0.5833333333 | BA21: 0 | BB21: 0.4444444444 | BC21: 0.6388888889 | BD21: 0
A22: 2 | B22: 10 | C22: 11 | D22: dead | E22: 10 | F22: dead | G22: 15 | H22: dead | J22: 32 | K22: =+C1069 -> 78 | L22: =+D1069 -> 72.5 | Q22: =+C1071 ->  | R22: =+D1071 -> 2.474873734 | AX22: =AX23-0.0001 -> 11.9999 | AY22: =AY21 -> 0.5833333333 | AZ22: =AZ21 -> 0.5833333333 | BA22: =BA21 -> 0 | BB22: =BB21 -> 0.4444444444 | BC22: =BC21 -> 0.6388888889 | BD22: =BD21 -> 0
A23: 3 | B23: 1 | C23: 7 | D23: 8 | E23: 2 | F23: 6 | G23: 4 | H23: 4 | AX23: 12 | AY23: 0.5277777778 | AZ23: 0.5833333333 | BA23: 0 | BB23: 0.4444444444 | BC23: 0.6111111111 | BD23: 0
A24: 3 | B24: 2 | C24: 8 | D24: 10 | E24: 4 | F24: 6 | G24: 6 | H24: 4 | AX24: =AX25-0.0001 -> 13.9999 | AY24: =AY23 -> 0.5277777778 | AZ24: =AZ23 -> 0.5833333333 | BA24: =BA23 -> 0 | BB24: =BB23 -> 0.4444444444 | BC24: =BC23 -> 0.6111111111 | BD24: =BD23 -> 0
A25: 3 | B25: 3 | C25: 9 | D25: 10 | E25: 5 | F25: 8 | G25: 7 | H25: 5 | AX25: 14 | AY25: 0.5277777778 | AZ25: 0.5833333333 | BA25: 0 | BB25: 0.3888888889 | BC25: 0.5277777778 | BD25: 0
A26: 3 | B26: 4 | C26: 9 | D26: 10 | E26: 6 | F26: 9 | G26: 8 | H26: 6 | AX26: =AX27-0.0001 -> 15.9999 | AY26: =AY25 -> 0.5277777778 | AZ26: =AZ25 -> 0.5833333333 | BA26: =BA25 -> 0 | BB26: =BB25 -> 0.3888888889 | BC26: =BC25 -> 0.5277777778 | BD26: =BD25 -> 0
A27: 3 | B27: 5 | C27: 10 | D27: 10 | E27: 7 | F27: 9 | G27: 8 | H27: 7 | AX27: 16 | AY27: 0.5277777778 | AZ27: 0.5833333333 | BA27: 0 | BB27: 0.3888888889 | BC27: 0.5 | BD27: 0
A28: 3 | B28: 6 | C28: 12 | D28: 10 | E28: 7 | F28: 9 | G28: 8 | H28: 8 | AX28: =AX29-0.0001 -> 17.9999 | AY28: =AY27 -> 0.5277777778 | AZ28: =AZ27 -> 0.5833333333 | BA28: =BA27 -> 0 | BB28: =BB27 -> 0.3888888889 | BC28: =BC27 -> 0.5 | BD28: =BD27 -> 0
A29: 3 | B29: 7 | C29: 13 | D29: 11 | E29: 10 | F29: 12 | G29: 8 | H29: 9 | AX29: 18 | AY29: 0.5277777778 | AZ29: 0.5833333333 | BA29: 0 | BB29: 0.3611111111 | BC29: 0.5 | BD29: 0
A30: 3 | B30: 8 | C30: 14 | D30: 11 | E30: 10 | F30: 12 | G30: 11 | H30: 12 | AX30: =AX31-0.0001 -> 19.9999 | AY30: =AY29 -> 0.5277777778 | AZ30: =AZ29 -> 0.5833333333 | BA30: =BA29 -> 0 | BB30: =BB29 -> 0.3611111111 | BC30: =BC29 -> 0.5 | BD30: =BD29 -> 0
A31: 3 | B31: 9 | C31: 14 | D31: 16 | E31: 11 | F31: 13 | G31: 12 | H31: dead | AX31: 20 | AY31: 0.5277777778 | AZ31: 0.5555555556 | BA31: 0 | BB31: 0.3611111111 | BC31: 0.5 | BD31: 0
A32: 3 | B32: 10 | C32: 18 | D32: dead | E32: 11 | F32: dead | G32: 17 | H32: dead | AX32: =AX33-0.0001 -> 21.9999 | AY32: =AY31 -> 0.5277777778 | AZ32: =AZ31 -> 0.5555555556 | BA32: =BA31 -> 0 | BB32: =BB31 -> 0.3611111111 | BC32: =BC31 -> 0.5 | BD32: =BD31 -> 0
A33: 4 | B33: 1 | C33: 4 | D33: 8 | E33: 6 | F33: 4 | G33: 6 | H33: 3 | AX33: 22 | AY33: 0.5277777778 | AZ33: 0.5555555556 | BA33: 0 | BB33: 0.3611111111 | BC33: 0.5 | BD33: 0
A34: 4 | B34: 2 | C34: 5 | D34: 8 | E34: 6 | F34: 6 | G34: 9 | H34: 3 | AX34: =AX35-0.0001 -> 23.9999 | AY34: =AY33 -> 0.5277777778 | AZ34: =AZ33 -> 0.5555555556 | BA34: =BA33 -> 0 | BB34: =BB33 -> 0.3611111111 | BC34: =BC33 -> 0.5 | BD34: =BD33 -> 0
A35: 4 | B35: 3 | C35: 6 | D35: 9 | E35: 6 | F35: 7 | G35: 9 | H35: 4 | AX35: 24 | AY35: 0.5277777778 | AZ35: 0.5555555556 | BA35: 0 | BB35: 0.3611111111 | BC35: 0.5 | BD35: 0
A36: 4 | B36: 4 | C36: 7 | D36: 9 | E36: 7 | F36: 9 | G36: 10 | H36: 6 | AX36: =AX37-0.0001 -> 25.9999 | AY36: =AY35 -> 0.5277777778 | AZ36: =AZ35 -> 0.5555555556 | BA36: =BA35 -> 0 | BB36: =BB35 -> 0.3611111111 | BC36: =BC35 -> 0.5 | BD36: =BD35 -> 0
A37: 4 | B37: 5 | C37: 8 | D37: 9 | E37: 7 | F37: 9 | G37: 11 | H37: 6 | AX37: 26 | AY37: 0.5277777778 | AZ37: 0.5555555556 | BA37: 0 | BB37: 0.3611111111 | BC37: 0.4722222222 | BD37: 0
A38: 4 | B38: 6 | C38: 11 | D38: 9 | E38: 7 | F38: 9 | G38: 11 | H38: 8 | AX38: =AX39-0.0001 -> 27.9999 | AY38: =AY37 -> 0.5277777778 | AZ38: =AZ37 -> 0.5555555556 | BA38: =BA37 -> 0 | BB38: =BB37 -> 0.3611111111 | BC38: =BC37 -> 0.4722222222 | BD38: =BD37 -> 0
A39: 4 | B39: 7 | C39: 11 | D39: 10 | E39: 7 | F39: 10 | G39: 11 | H39: 9 | AX39: 28 | AY39: 0.5277777778 | AZ39: 0.5555555556 | BA39: 0 | BB39: 0.3333333333 | BC39: 0.4722222222 | BD39: 0
A40: 4 | B40: 8 | C40: 12 | D40: 11 | E40: 8 | F40: 11 | G40: 11 | H40: 12 | AX40: =AX41-0.0001 -> 29.9999 | AY40: =AY39 -> 0.5277777778 | AZ40: =AZ39 -> 0.5555555556 | BA40: =BA39 -> 0 | BB40: =BB39 -> 0.3333333333 | BC40: =BC39 -> 0.4722222222 | BD40: =BD39 -> 0
A41: 4 | B41: 9 | C41: 12 | D41: 12 | E41: 11 | F41: 12 | G41: 12 | H41: dead | AX41: 30 | AY41: 0.5277777778 | AZ41: 0.5555555556 | BA41: 0 | BB41: 0.3333333333 | BC41: 0.4722222222 | BD41: 0
A42: 4 | B42: 10 | C42: 12 | D42: dead | E42: dead | F42: dead | G42: 14 | H42: dead | AX42: =AX43-0.0001 -> 31.9999 | AY42: =AY41 -> 0.5277777778 | AZ42: =AZ41 -> 0.5555555556 | BA42: =BA41 -> 0 | BB42: =BB41 -> 0.3333333333 | BC42: =BC41 -> 0.4722222222 | BD42: =BD41 -> 0
A43: average: | C43: =AVERAGE(C3:C42) -> 9.7 | D43: =AVERAGE(D3:D42) -> 9.794117647 | E43: 7.461538462 | F43: 8.810810811 | G43: 9.5 | H43: 6 | AX43: 32 | AY43: 0.4166666667 | AZ43: 0.4722222222 | BA43: 0 | BB43: 0.1944444444 | BC43: 0.3055555556 | BD43: 0
A44: median: | C44: =MEDIAN(C3:C42) -> 10 | D44: =MEDIAN(D3:D42) -> 10 | E44: 7 | F44: 9 | G44: 9.5 | H44: 5 | AX44: =AX45-0.0001 -> 33.9999 | AY44: =AY43 -> 0.4166666667 | AZ44: =AZ43 -> 0.4722222222 | BA44: =BA43 -> 0 | BB44: =BB43 -> 0.1944444444 | BC44: =BC43 -> 0.3055555556 | BD44: =BD43 -> 0
A45: SE: | C45: =STDEV(C3:C42)/SQRT(COUNTA(C3:C42)) -> 0.487273945 | D45: =STDEV(D3:D42)/SQRT(COUNTA(D3:D42)) -> 0.4133737977 | E45: 0.3766999257 | F45: 0.459223133 | G45: 0.4613247368 | H45: 0.4100997661 | AX45: 34 | AY45: 0.4166666667 | AZ45: 0.3888888889 | BA45: 0 | BB45: 0.1944444444 | BC45: 0.2777777778 | BD45: 0
A46: dead larvae: | C46: =COUNTIF(C3:C42,"dead")/40 -> 0 | D46: =COUNTIF(D3:D42,"dead")/40 -> 0.15 | E46: 0.025 | F46: 0.075 | G46: 0 | H46: 0.15 | AX46: =AX47-0.0001 -> 36.9999 | AY46: =AY45 -> 0.4166666667 | AZ46: =AZ45 -> 0.3888888889 | BA46: =BA45 -> 0 | BB46: =BB45 -> 0.1944444444 | BC46: =BC45 -> 0.2777777778 | BD46: =BD45 -> 0
A47: no dead larvae: | C47: =COUNTIF(C3:C42,"dead") -> 0 | D47: =COUNTIF(D3:D42,"dead") -> 6 | E47: 1 | F47: 3 | G47: 0 | H47: 6 | AX47: 37 | AY47: 0.4166666667 | AZ47: 0.3888888889 | BA47: 0 | BB47: 0.1944444444 | BC47: 0.2777777778 | BD47: 0
A48: ttest: | E48: =_xlfn.T.TEST(E3:E42,$D3:$D42,2,2) -> 0.0001600085766 | F48: =_xlfn.T.TEST(F3:F42,$D3:$D42,2,2) -> 0.1396001517 | G48: 0.6518381397 | H48: 8.996907011e-08 | AX48: =AX49-0.0001 -> 37.9999 | AY48: =AY47 -> 0.4166666667 | AZ48: =AZ47 -> 0.3888888889 | BA48: =BA47 -> 0 | BB48: =BB47 -> 0.1944444444 | BC48: =BC47 -> 0.2777777778 | BD48: =BD47 -> 0
E49: =IF(E48<0.05,"*","") -> * | F49: =IF(F48<0.05,"*","") ->  | H49: * | AX49: 38 | AY49: 0.3888888889 | AZ49: 0.3333333333 | BA49: 0 | BB49: 0.1388888889 | BC49: 0.2777777778 | BD49: 0
E50: =IF(E48<0.01,"**","") -> ** | F50: =IF(F48<0.01,"**","") ->  | H50: ** | AX50: =AX51-0.0001 -> 38.9999 | AY50: =AY49 -> 0.3888888889 | AZ50: =AZ49 -> 0.3333333333 | BA50: =BA49 -> 0 | BB50: =BB49 -> 0.1388888889 | BC50: =BC49 -> 0.2777777778 | BD50: =BD49 -> 0 | BT50: A | CJ50: B
E51: =IF(E48<0.001,"***","") -> *** | F51: =IF(F48<0.001,"***","") ->  | H51: *** | AX51: 39 | AY51: 0.3888888889 | AZ51: 0.3333333333 | BA51: 0 | BB51: 0.1388888889 | BC51: 0.2777777778 | BD51: 0
AX52: =AX53-0.0001 -> 40.9999 | AY52: =AY51 -> 0.3888888889 | AZ52: =AZ51 -> 0.3333333333 | BA52: =BA51 -> 0 | BB52: =BB51 -> 0.1388888889 | BC52: =BC51 -> 0.2777777778 | BD52: =BD51 -> 0
AX53: 41 | AY53: 0.3611111111 | AZ53: 0.2777777778 | BA53: 0 | BB53: 0.1388888889 | BC53: 0.2777777778 | BD53: 0 | DE53: A | DW53: B
A55: 4 dpt | T55: here JHBP and alas seem to have some negative effect on larval mass
A56: biol repl | B56: larva No | C56: H2O | D56: egfp (-) | E56: vATPaseE (+) | F56: alas | G56: JHBP | H56: mesh | K56: mortality % | U56: survival %
A57: 1 | B57: 1 | C57: 16 | D57: 26 | E57: dead | F57: 13 | G57: 11 | H57: dead | J57: dpt | K57: water (blank control) | L57: dsEGFP (neg. control) | M57: dsvATPaseE (pos. control) | N57: dsALAS | O57: dsJHBP | P57: dsMESH | T57: =J57 -> dpt | U57: water (blank control) | V57: dsEGFP (neg. control) | W57: dsvATPaseE (pos. control) | X57: dsALAS | Y57: dsJHBP | Z57: dsMESH
A58: 1 | B58: 2 | C58: 16 | D58: 19 | E58: 12 | F58: 12 | G58: 22 | H58: dead | J58: 0 | K58: 0 | L58: 0 | M58: 0 | N58: 0 | O58: 0 | P58: 0 | T58: =J58 -> 0 | U58: =1-K58 -> 1 | V58: =1-L58 -> 1 | W58: 1 | X58: 1 | Y58: 1 | Z58: 1
A59: 1 | B59: 3 | C59: 17 | D59: 20 | E59: 5 | F59: 9 | G59: dead | H59: dead | J59: 3 | K59: =C46 -> 0 | L59: 0.15 | M59: 0.025 | N59: 0.075 | O59: 0 | P59: 0.15 | T59: 3 | U59: =1-K59 -> 1 | V59: =1-L59 -> 0.85 | W59: =1-M59 -> 0.975 | X59: =1-N59 -> 0.925 | Y59: =1-O59 -> 1 | Z59: =1-P59 -> 0.85
A60: 1 | B60: 4 | C60: 12 | D60: 14 | E60: 10 | F60: 11 | G60: 17 | H60: dead | J60: 4 | K60: =C100 -> 0.05 | L60: 0.2 | M60: 0.125 | N60: 0.125 | O60: 0.075 | P60: 0.525 | T60: 4 | U60: 0.95 | V60: 0.8 | W60: 0.875 | X60: 0.875 | Y60: 0.925 | Z60: 0.475
A61: 1 | B61: 5 | C61: 11 | D61: 11 | E61: 13 | F61: 20 | G61: 12 | H61: dead | J61: 5 | K61: =+C154 -> 0.08333333333 | L61: 0.25 | M61: 0.3888888889 | N61: 0.2777777778 | O61: 0.1388888889 | P61: 0.8611111111 | T61: 5 | U61: 0.9166666667 | V61: 0.75 | W61: 0.6111111111 | X61: 0.7222222222 | Y61: 0.8611111111 | Z61: 0.1388888889
A62: 1 | B62: 6 | C62: 13 | D62: 12 | E62: 10 | F62: 12 | G62: 20 | H62: dead | J62: 6 | K62: =+C208 -> 0.1111111111 | L62: 0.25 | M62: 0.6666666667 | N62: 0.3333333333 | O62: 0.1666666667 | P62: 0.9722222222 | T62: 6 | U62: 0.8888888889 | V62: 0.75 | W62: 0.3333333333 | X62: 0.6666666667 | Y62: 0.8333333333 | Z62: 0.02777777778
A63: 1 | B63: 7 | C63: 24 | D63: 12 | E63: 15 | F63: 17 | G63: 18 | H63: 1 | J63: 7 | K63: =+C262 -> 0.1111111111 | L63: 0.2777777778 | M63: 0.8055555556 | N63: 0.4166666667 | O63: 0.1944444444 | P63: 0.9722222222 | T63: 7 | U63: 0.8888888889 | V63: 0.7222222222 | W63: 0.1944444444 | X63: 0.5833333333 | Y63: 0.8055555556 | Z63: 0.02777777778
A64: 1 | B64: 8 | C64: 14 | D64: 30 | E64: 11 | F64: 7 | G64: 22 | H64: 7 | J64: 8 | K64: =+C316 -> 0.1666666667 | L64: 0.3333333333 | M64: 0.9444444444 | N64: 0.4444444444 | O64: 0.25 | P64: 1 | T64: 8 | U64: 0.8333333333 | V64: 0.6666666667 | W64: 0.05555555556 | X64: 0.5555555556 | Y64: 0.75 | Z64: 0
A65: 1 | B65: 9 | C65: 26 | D65: dead | E65: 9 | F65: 10 | G65: 6 | H65: 4 | J65: 9 | K65: =+C370 -> 0.2777777778 | L65: 0.3888888889 | M65: 0.9722222222 | N65: 0.5 | O65: 0.3611111111 | P65: 1 | T65: 9 | U65: 0.7222222222 | V65: 0.6111111111 | W65: 0.02777777778 | X65: 0.5 | Y65: 0.6388888889 | Z65: 0
A66: 1 | B66: 10 | C66: dead | D66: dead | E66: 12 | F66: 4 | G66: 12 | H66: 7 | J66: 10 | K66: =+C424 -> 0.3333333333 | L66: 0.4166666667 | M66: 1 | N66: 0.5277777778 | O66: 0.3611111111 | P66: 1 | T66: 10 | U66: 0.6666666667 | V66: 0.5833333333 | W66: 0 | X66: 0.4722222222 | Y66: 0.6388888889 | Z66: 0
A67: 2 | B67: 1 | C67: 20 | D67: 28 | E67: 20 | F67: 23 | G67: 13 | H67: 1 | J67: 11 | K67: =+C478 -> 0.4166666667 | L67: 0.4166666667 | M67: 1 | N67: 0.5555555556 | O67: 0.3611111111 | P67: 1 | T67: 11 | U67: 0.5833333333 | V67: 0.5833333333 | W67: 0 | X67: 0.4444444444 | Y67: 0.6388888889 | Z67: 0
A68: 2 | B68: 2 | C68: 20 | D68: 10 | E68: 11 | F68: 16 | G68: 17 | H68: 2 | J68: 12 | K68: =+C532 -> 0.4722222222 | L68: 0.4166666667 | M68: 1 | N68: 0.5555555556 | O68: 0.3888888889 | P68: 1 | T68: 12 | U68: 0.5277777778 | V68: 0.5833333333 | W68: 0 | X68: 0.4444444444 | Y68: 0.6111111111 | Z68: 0
A69: 2 | B69: 3 | C69: 21 | D69: 11 | E69: 12 | F69: 17 | G69: 7 | H69: dead | J69: 14 | K69: =+C586 -> 0.4722222222 | L69: 0.4166666667 | M69: 1 | N69: 0.6111111111 | O69: 0.4722222222 | P69: 1 | T69: 14 | U69: 0.5277777778 | V69: 0.5833333333 | W69: 0 | X69: 0.3888888889 | Y69: 0.5277777778 | Z69: 0
A70: 2 | B70: 4 | C70: 10 | D70: 21 | E70: 16 | F70: 20 | G70: 18 | H70: 8 | J70: 16 | K70: =+C640 -> 0.4722222222 | L70: 0.4166666667 | M70: 1 | N70: 0.6111111111 | O70: 0.5 | P70: 1 | T70: 16 | U70: 0.5277777778 | V70: 0.5833333333 | W70: 0 | X70: 0.3888888889 | Y70: 0.5 | Z70: 0
A71: 2 | B71: 5 | C71: 21 | D71: 23 | E71: 7 | F71: 24 | G71: 22 | H71: 3 | J71: 18 | K71: =+C694 -> 0.4722222222 | L71: 0.4166666667 | M71: 1 | N71: 0.6388888889 | O71: 0.5 | P71: 1 | T71: 18 | U71: 0.5277777778 | V71: 0.5833333333 | W71: 0 | X71: 0.3611111111 | Y71: 0.5 | Z71: 0
A72: 2 | B72: 6 | C72: 17 | D72: 28 | E72: 10 | F72: dead | G72: 11 | H72: 9 | J72: 20 | K72: =+C748 -> 0.4722222222 | L72: 0.4444444444 | M72: 1 | N72: 0.6388888889 | O72: 0.5 | P72: 1 | T72: 20 | U72: 0.5277777778 | V72: 0.5555555556 | W72: 0 | X72: 0.3611111111 | Y72: 0.5 | Z72: 0
A73: 2 | B73: 7 | C73: 12 | D73: 5 | E73: 13 | F73: 21 | G73: 12 | H73: 8 | J73: 22 | K73: =+C802 -> 0.4722222222 | L73: 0.4444444444 | M73: 1 | N73: 0.6388888889 | O73: 0.5 | P73: 1 | T73: 22 | U73: 0.5277777778 | V73: 0.5555555556 | W73: 0 | X73: 0.3611111111 | Y73: 0.5 | Z73: 0
A74: 2 | B74: 8 | C74: 15 | D74: dead | E74: 6 | F74: 17 | G74: 22 | H74: dead | J74: 24 | K74: =+C856 -> 0.4722222222 | L74: 0.4444444444 | M74: 1 | N74: 0.6388888889 | O74: 0.5 | P74: 1 | T74: 24 | U74: 0.5277777778 | V74: 0.5555555556 | W74: 0 | X74: 0.3611111111 | Y74: 0.5 | Z74: 0
A75: 2 | B75: 9 | C75: 11 | D75: dead | E75: 6 | F75: 5 | G75: 14 | H75: dead | J75: 26 | K75: =+C910 -> 0.4722222222 | L75: 0.4444444444 | M75: 1 | N75: 0.6388888889 | O75: 0.5277777778 | P75: 1 | T75: 26 | U75: 0.5277777778 | V75: 0.5555555556 | W75: 0 | X75: 0.3611111111 | Y75: 0.4722222222 | Z75: 0
A76: 2 | B76: 10 | C76: 9 | D76: dead | E76: 4 | F76: dead | G76: dead | H76: dead | J76: 28 | K76: =+C964 -> 0.4722222222 | L76: 0.4444444444 | M76: 1 | N76: 0.6666666667 | O76: 0.5277777778 | P76: 1 | T76: 28 | U76: 0.5277777778 | V76: 0.5555555556 | W76: 0 | X76: 0.3333333333 | Y76: 0.4722222222 | Z76: 0
A77: 3 | B77: 1 | C77: dead | D77: 19 | E77: 7 | F77: dead | G77: 30 | H77: 4 | J77: 30 | K77: =+C1018 -> 0.4722222222 | L77: 0.4444444444 | M77: 1 | N77: 0.6666666667 | O77: 0.5277777778 | P77: 1 | T77: 30 | U77: 0.5277777778 | V77: 0.5555555556 | W77: 0 | X77: 0.3333333333 | Y77: 0.4722222222 | Z77: 0
A78: 3 | B78: 2 | C78: 29 | D78: 20 | E78: 2 | F78: 16 | G78: 11 | H78: dead | J78: 32 | K78: =+C1072 -> 0.5833333333 | L78: 0.5277777778 | M78: 1 | N78: 0.8055555556 | O78: 0.6944444444 | P78: 1 | T78: 32 | U78: 0.4166666667 | V78: 0.4722222222 | W78: 0 | X78: 0.1944444444 | Y78: 0.3055555556 | Z78: 0
A79: 3 | B79: 3 | C79: 17 | D79: 12 | E79: 15 | F79: 28 | G79: 15 | H79: dead | J79: 34 | K79: =C1091/36 -> 0.5833333333 | L79: =D1091/36 -> 0.6111111111 | M79: 1 | N79: 0.8055555556 | O79: 0.7222222222 | P79: 1 | T79: 34 | U79: 0.4166666667 | V79: 0.3888888889 | W79: 0 | X79: 0.1944444444 | Y79: 0.2777777778 | Z79: 0
A80: 3 | B80: 4 | C80: 12 | D80: 27 | E80: 11 | F80: 28 | G80: 20 | H80: dead | J80: 37 | K80: =C1104/36 -> 0.5833333333 | L80: =D1104/36 -> 0.6111111111 | M80: 1 | N80: 0.8055555556 | O80: 0.7222222222 | P80: 1 | T80: 37 | U80: 0.4166666667 | V80: 0.3888888889 | W80: 0 | X80: 0.1944444444 | Y80: 0.2777777778 | Z80: 0
A81: 3 | B81: 5 | C81: 28 | D81: 20 | E81: 11 | F81: 16 | G81: 19 | H81: 12 | J81: 38 | K81: =C1117/36 -> 0.6111111111 | L81: =D1117/36 -> 0.6666666667 | M81: 1 | N81: 0.8611111111 | O81: 0.7222222222 | P81: 1 | T81: 38 | U81: 0.3888888889 | V81: 0.3333333333 | W81: 0 | X81: 0.1388888889 | Y81: 0.2777777778 | Z81: 0
A82: 3 | B82: 6 | C82: 25 | D82: 33 | E82: 11 | F82: 19 | G82: 16 | H82: dead | J82: 39 | K82: =C1130/36 -> 0.6111111111 | L82: =D1130/36 -> 0.6666666667 | M82: 1 | N82: 0.8611111111 | O82: 0.7222222222 | P82: 1 | T82: 39 | U82: 0.3888888889 | V82: 0.3333333333 | W82: 0 | X82: 0.1388888889 | Y82: 0.2777777778 | Z82: 0
A83: 3 | B83: 7 | C83: 17 | D83: 20 | E83: 5 | F83: 38 | G83: 12 | H83: 3 | J83: 41 | K83: =C1143/36 -> 0.6388888889 | L83: =D1143/36 -> 0.7222222222 | M83: 1 | N83: 0.8611111111 | O83: 0.7222222222 | P83: 1 | T83: 41 | U83: 0.3611111111 | V83: 0.2777777778 | W83: 0 | X83: 0.1388888889 | Y83: 0.2777777778 | Z83: 0
A84: 3 | B84: 8 | C84: 14 | D84: 22 | E84: 10 | F84: 22 | G84: 14 | H84: 5
A85: 3 | B85: 9 | C85: 8 | D85: 21 | E85: 7 | F85: 30 | G85: 12 | H85: dead
A86: 3 | B86: 10 | C86: 30 | D86: dead | E86: dead | F86: dead | G86: dead | H86: dead
A87: 4 | B87: 1 | C87: 22 | D87: dead | E87: dead | F87: 25 | G87: 19 | H87: 21
A88: 4 | B88: 2 | C88: 11 | D88: 15 | E88: 5 | F88: 18 | G88: 8 | H88: 10
A89: 4 | B89: 3 | C89: 18 | D89: 16 | E89: 10 | F89: 15 | G89: 17 | H89: 11
A90: 4 | B90: 4 | C90: 10 | D90: 18 | E90: 10 | F90: 24 | G90: 14 | H90: 1
A91: 4 | B91: 5 | C91: 19 | D91: 24 | E91: 15 | F91: 16 | G91: 14 | H91: 1 | BT91: C | CJ91: D | DE91: C | DW91: D
A92: 4 | B92: 6 | C92: 20 | D92: 17 | E92: 7 | F92: 8 | G92: 18 | H92: dead
A93: 4 | B93: 7 | C93: 23 | D93: 20 | E93: 6 | F93: 7 | G93: 12 | H93: dead
A94: 4 | B94: 8 | C94: 10 | D94: 14 | E94: 4 | F94: 10 | G94: 12 | H94: dead
A95: 4 | B95: 9 | C95: 14 | D95: 11 | E95: dead | F95: 7 | G95: 12 | H95: dead
A96: 4 | B96: 10 | C96: 7 | D96: dead | E96: dead | F96: dead | G96: 13 | H96: dead
A97: average: | C97: =AVERAGE(C57:C96) -> 16.81578947 | D97: =AVERAGE(D57:D96) -> 18.71875 | E97: =AVERAGE(E57:E96) -> 9.657142857 | F97: =AVERAGE(F57:F96) -> 16.71428571 | G97: =AVERAGE(G57:G96) -> 15.24324324 | H97: =AVERAGE(H57:H96) -> 6.210526316
A98: median: | C98: =MEDIAN(C57:C96) -> 16.5 | D98: =MEDIAN(D57:D96) -> 19.5 | E98: 10 | F98: 16 | G98: 14 | H98: 5
A99: SE: | C99: =STDEV(C57:C96)/SQRT(COUNTA(C57:C96)) -> 0.9641235084 | D99: =STDEV(D57:D96)/SQRT(COUNTA(D57:D96)) -> 1.042820597 | E99: 0.6288912479 | F99: 1.235844215 | G99: 0.7758556257 | H99: 0.802044172
A100: dead larvae: | C100: =COUNTIF(C57:C96,"dead")/40 -> 0.05 | D100: =COUNTIF(D57:D96,"dead")/40 -> 0.2 | E100: 0.125 | F100: 0.125 | G100: 0.075 | H100: 0.525
A101: no dead larvae: | C101: =COUNTIF(C57:C96,"dead") -> 2 | D101: =COUNTIF(D57:D96,"dead") -> 8 | E101: 5 | F101: 5 | G101: 3 | H101: 21
A102: ttest: | E102: =_xlfn.T.TEST(E57:E96,$D57:$D96,2,2) -> 2.855312457e-09 | F102: =_xlfn.T.TEST(F57:F96,$D57:$D96,2,2) -> 0.2630870241 | G102: 0.01473047792 | H102: 4.599135599e-09
E103: =IF(E102<0.05,"*","") -> * | F103: =IF(F102<0.05,"*","") ->  | G103: =IF(G102<0.05,"*","") -> * | H103: =IF(H102<0.05,"*","") -> *
E104: =IF(E102<0.01,"**","") -> ** | F104: =IF(F102<0.01,"**","") ->  | H104: **
E105: =IF(E102<0.001,"***","") -> *** | F105: =IF(F102<0.001,"***","") ->  | H105: ***
H108: at 4 dpt there is a clear indication that mesh is a good target, more effective than the positive control
A109: 5 dpt
A110: biol repl | B110: larva No | C110: H2O | D110: egfp (-) | E110: vATPaseE (+) | F110: alas | G110: JHBP | H110: mesh
A111: 1 | B111: 1 | C111: 44 | D111: 43 | E111: dead | F111: 31 | G111: 38 | H111: dead | K111: pupa % | Q111: only alive ones!!!
A112: 1 | B112: 2 | C112: 25 | D112: 50 | E112: dead | F112: 22 | G112: 38 | H112: dead | J112: dpt | K112: H2O | L112: egfp (-) | M112: vATPaseE (+) | N112: alas | O112: JHBP | P112: mesh
A113: 1 | B113: 3 | C113: 12 | D113: 17 | E113: 11 | F113: dead | G113: 23 | H113: dead | J113: 0 | K113: 0 | L113: 0 | M113: 0 | N113: 0 | O113: 0 | P113: 0
A114: 1 | B114: 4 | C114: 21 | D114: 24 | E114: 7 | F114: 6 | G114: 46 | H114: dead | J114: 3 | K114: 0 | L114: 0 | M114: 0 | N114: 0 | O114: 0 | P114: 0
A115: 1 | B115: 5 | C115: 10 | D115: dead | E115: 8 | F115: 14 | G115: 7 | H115: dead | J115: 4 | K115: 0 | L115: 0 | M115: 0 | N115: 0 | O115: 0 | P115: 0
A116: 1 | B116: 6 | C116: dead | D116: dead | E116: dead | F116: dead | G116: dead | H116: dead | J116: 5 | K116: 0 | L116: 0 | M116: 0 | N116: 0 | O116: 0 | P116: 0
A117: 1 | B117: 7 | I117: sampled larva | J117: 6 | K117: 0 | L117: 0 | M117: 0 | N117: 0 | O117: 0 | P117: 0
A118: 1 | B118: 8 | I118: sampled larva | J118: 7 | K118: 0 | L118: 0 | M118: 0 | N118: 0 | O118: 0 | P118: 0
A119: 1 | B119: 9 | I119: sampled larva | J119: 8 | K119: 0 | L119: 0 | M119: 0 | N119: 0 | O119: 0 | P119: 0
A120: 1 | B120: 10 | I120: sampled larva | J120: 9 | K120: 0 | L120: 0 | M120: 0 | N120: 0 | O120: 0 | P120: 0
A121: 2 | B121: 1 | C121: 41 | D121: dead | E121: 9 | F121: 38 | G121: 32 | H121: dead | J121: 10 | K121: =C426 -> 0.02777777778 | L121: 0 | M121: 0 | N121: 0.05555555556 | O121: 0 | P121: 0
A122: 2 | B122: 2 | C122: 19 | D122: 40 | E122: 19 | F122: 49 | G122: 26 | H122: dead | J122: 11 | K122: =C480 -> 0.1388888889 | L122: 0.02777777778 | M122: 0 | N122: 0.08333333333 | O122: 0 | P122: 0
A123: 2 | B123: 3 | C123: 23 | D123: 29 | E123: 15 | F123: 35 | G123: 13 | H123: dead | J123: 12 | K123: =C534 -> 0.2777777778 | L123: 0.1388888889 | M123: 0 | N123: 0.08333333333 | O123: 0.1111111111 | P123: 0
A124: 2 | B124: 4 | C124: 36 | D124: 13 | E124: 8 | F124: 43 | G124: 20 | H124: dead | J124: 14 | K124: =C588 -> 0.4166666667 | L124: 0.2222222222 | M124: 0 | N124: 0.08333333333 | O124: 0.25 | P124: 0
A125: 2 | B125: 5 | C125: 31 | D125: 48 | E125: 7 | F125: 32 | G125: 29 | H125: 6 | J125: 16 | K125: =C642 -> 0.4722222222 | L125: 0.4444444444 | M125: 0 | N125: 0.1666666667 | O125: 0.3611111111 | P125: 0
A126: 2 | B126: 6 | C126: 32 | D126: 30 | E126: 8 | F126: 23 | G126: 20 | H126: 6 | J126: 18 | K126: =C696 -> 0.4722222222 | L126: 0.5 | M126: 0 | N126: 0.1944444444 | O126: 0.3888888889 | P126: 0
A127: 2 | B127: 7 | C127: 44 | D127: 13 | E127: 14 | F127: 19 | G127: 23 | H127: dead | J127: 20 | K127: =C750 -> 0.4722222222 | L127: 0.5 | M127: 0 | N127: 0.2222222222 | O127: 0.4166666667 | P127: 0
A128: 2 | B128: 8 | C128: 31 | D128: dead | E128: 8 | F128: 9 | G128: 15 | H128: dead | J128: 22 | K128: =C804 -> 0.4722222222 | L128: 0.5 | M128: 0 | N128: 0.25 | O128: 0.4166666667 | P128: 0
A129: 2 | B129: 9 | C129: 18 | D129: dead | E129: 3 | F129: dead | G129: 45 | H129: dead | J129: 24 | K129: =C858 -> 0.4444444444 | L129: 0.5 | M129: 0 | N129: 0.25 | O129: 0.4444444444 | P129: 0
A130: 2 | B130: 10 | C130: 17 | D130: dead | E130: 8 | F130: dead | G130: dead | H130: dead | J130: 26 | K130: =C912 -> 0.3055555556 | L130: 0.3888888889 | M130: 0 | N130: 0.2222222222 | O130: 0.3055555556 | P130: 0
A131: 3 | B131: 1 | C131: dead | D131: 41 | E131: dead | F131: 33 | G131: 19 | H131: dead | J131: 28 | K131: =C966 -> 0.2222222222 | L131: 0.25 | M131: 0 | N131: 0.25 | O131: 0.2777777778 | P131: 0
A132: 3 | B132: 2 | C132: 28 | D132: 14 | E132: dead | F132: 22 | G132: 18 | H132: dead | J132: 30 | K132: =C1020 -> 0.1666666667 | L132: 0.1388888889 | M132: 0 | N132: 0.1666666667 | O132: 0.1944444444 | P132: 0
A133: 3 | B133: 3 | C133: 24 | D133: 35 | E133: dead | F133: 20 | G133: 11 | H133: 10 | J133: 32 | K133: =C1074 -> 0.02777777778 | L133: 0 | M133: 0 | N133: 0.05555555556 | O133: 0 | P133: 0 | BT133: E?
A134: 3 | B134: 4 | C134: 23 | D134: 34 | E134: 5 | F134: 50 | G134: 36 | H134: 2 | J134: 34 | K134: =C1085/36 -> 0.02777777778 | L134: =D1085 -> 0 | M134: 0 | N134: =F1085/36 -> 0.02777777778 | O134: 0 | P134: 0
A135: 3 | B135: 5 | C135: 21 | D135: 32 | E135: 9 | F135: 35 | G135: 29 | H135: dead | J135: 37 | K135: =C1098/36 -> 0.02777777778 | L135: =D1098 -> 0 | M135: 0 | N135: =F1098/36 -> 0 | O135: 0 | P135: 0
A136: 3 | B136: 6 | C136: 52 | D136: 32 | E136: 11 | F136: 31 | G136: 32 | H136: dead | J136: 38 | K136: =C1111/36 -> 0.02777777778 | L136: =D1111 -> 0 | M136: 0 | N136: =F1111/36 -> 0 | O136: 0 | P136: 0
A137: 3 | B137: 7 | C137: 43 | D137: 30 | E137: 10 | F137: 16 | G137: dead | H137: dead | J137: 39 | K137: =C1124/36 -> 0.02777777778 | L137: =D1124 -> 0 | M137: 0 | N137: =F1124/36 -> 0 | O137: 0 | P137: 0
A138: 3 | B138: 8 | C138: 88 | D138: 47 | E138: 10 | F138: 43 | G138: 19 | H138: dead | J138: 41 | K138: =C1137/36 -> 0 | L138: =D1137 -> 0 | M138: 0 | N138: =F1137/36 -> 0 | O138: 0 | P138: 0
A139: 3 | B139: 9 | C139: 37 | D139: 27 | E139: 8 | F139: dead | G139: 17 | H139: dead
A140: 3 | B140: 10 | C140: dead | D140: dead | E140: dead | F140: dead | G140: dead | H140: dead
A141: 4 | B141: 1 | C141: 33 | D141: 22 | E141: dead | F141: 19 | G141: 34 | H141: dead
A142: 4 | B142: 2 | C142: 30 | D142: 30 | E142: dead | F142: 14 | G142: 15 | H142: dead
A143: 4 | B143: 3 | C143: 27 | D143: 14 | E143: dead | F143: 36 | G143: 23 | H143: dead
A144: 4 | B144: 4 | C144: 14 | D144: 30 | E144: dead | F144: 33 | G144: 26 | H144: dead
A145: 4 | B145: 5 | C145: 18 | D145: 17 | E145: 12 | F145: 15 | G145: 25 | H145: 18
A146: 4 | B146: 6 | C146: 13 | D146: 37 | E146: 9 | F146: 19 | G146: 12 | H146: dead
A147: 4 | B147: 7 | C147: 38 | D147: 25 | E147: 8 | F147: dead | G147: 22 | H147: dead
A148: 4 | B148: 8 | C148: 31 | D148: 21 | E148: dead | F148: dead | G148: 19 | H148: dead
A149: 4 | B149: 9 | C149: 41 | D149: dead | E149: dead | F149: dead | G149: 32 | H149: dead
A150: 4 | B150: 10 | C150: 17 | D150: dead | E150: dead | F150: dead | G150: dead | H150: dead
A151: average: | C151: =AVERAGE(C111:C150) -> 29.75757576 | D151: =AVERAGE(D111:D150) -> 29.44444444 | E151: 9.409090909 | F151: 27.19230769 | G151: 24.64516129 | H151: 8.4
A152: median: | C152: =MEDIAN(C111:C150) -> 28 | D152: =MEDIAN(D111:D150) -> 30 | E152: 8.5 | F152: 27 | G152: 23 | H152: 6
A153: SE: | C153: =STDEV(C111:C150)/SQRT(COUNTA(C111:C150)) -> 2.493752716 | D153: =STDEV(D111:D150)/SQRT(COUNTA(D111:D150)) -> 1.830611811 | E153: 0.5673177653 | F153: 2.016057335 | G153: 1.633870879 | H153: 1.011050059
A154: dead larvae: | C154: =COUNTIF(C111:C150,"dead")/36 -> 0.08333333333 | D154: =COUNTIF(D111:D150,"dead")/36 -> 0.25 | E154: 0.3888888889 | F154: 0.2777777778 | G154: 0.1388888889 | H154: 0.8611111111
A155: no dead larvae: | C155: =COUNTIF(C111:C150,"dead") -> 3 | D155: =COUNTIF(D111:D150,"dead") -> 9 | E155: 14 | F155: 10 | G155: 5 | H155: 31
A156: ttest: | E156: =_xlfn.T.TEST(E111:E150,$D111:$D150,2,2) -> 1.174303034e-10 | F156: =_xlfn.T.TEST(F111:F150,$D111:$D150,2,2) -> 0.4808709104 | G156: 0.08413512697 | H156: 0.0002657876195
E157: =IF(E156<0.05,"*","") -> * | F157: =IF(F156<0.05,"*","") ->  | G157: =IF(G156<0.05,"*","") ->  | H157: =IF(H156<0.05,"*","") -> *
E158: =IF(E156<0.01,"**","") -> ** | F158: =IF(F156<0.01,"**","") ->  | H158: **
E159: =IF(E156<0.001,"***","") -> *** | F159: =IF(F156<0.001,"***","") ->  | H159: ***
A163: 6 dpt
A164: biol repl | B164: larva No | C164: H2O | D164: egfp (-) | E164: vATPaseE (+) | F164: alas | G164: JHBP | H164: mesh
A165: 1 | B165: 1 | C165: 29 | D165: 67 | E165: 12 | F165: 36 | G165: 10 | H165: dead
A166: 1 | B166: 2 | C166: 11 | D166: 23 | E166: dead | F166: 17 | G166: 37 | H166: dead
A167: 1 | B167: 3 | C167: 33 | D167: 38 | E167: dead | F167: 8 | G167: 32 | H167: dead | K167: adults % | Q167: only alive ones!!!
A168: 1 | B168: 4 | C168: 44 | D168: 40 | E168: dead | F168: 22 | G168: 34 | H168: dead | J168: dpt | K168: H2O | L168: egfp (-) | M168: vATPaseE (+) | N168: alas | O168: JHBP | P168: mesh
A169: 1 | B169: 5 | C169: 13 | D169: dead | E169: dead | F169: dead | G169: 33 | H169: dead | J169: 0 | K169: 0 | L169: 0 | M169: 0 | N169: 0 | O169: 0 | P169: 0 | BU169: Beetles were reared from 2nd larval instar till pupation on treated detached leaves that were exchanged daily. Ten larvae were placed into each plastic cup at the beginning of trial. The photo shows treatment group dsALAS at 5 dpt. | DF169: Beetles were reared from 2nd larval instar till pupation on treated detached leaves that were exchanged daily. Ten larvae were placed into each plastic cup at the beginning of trial. The photo shows treatment group dsALAS at 5 dpt.
A170: 1 | B170: 6 | C170: dead | D170: dead | E170: dead | F170: dead | G170: dead | H170: dead | J170: 3 | K170: 0 | L170: 0 | M170: 0 | N170: 0 | O170: 0 | P170: 0
A171: 1 | B171: 7 | J171: 4 | K171: 0 | L171: 0 | M171: 0 | N171: 0 | O171: 0 | P171: 0
A172: 1 | B172: 8 | J172: 5 | K172: 0 | L172: 0 | M172: 0 | N172: 0 | O172: 0 | P172: 0
A173: 1 | B173: 9 | J173: 6 | K173: 0 | L173: 0 | M173: 0 | N173: 0 | O173: 0 | P173: 0
A174: 1 | B174: 10 | J174: 7 | K174: 0 | L174: 0 | M174: 0 | N174: 0 | O174: 0 | P174: 0
A175: 2 | B175: 1 | C175: 46 | D175: 43 | E175: 6 | F175: 74 | G175: 40 | H175: dead | J175: 8 | K175: 0 | L175: 0 | M175: 0 | N175: 0 | O175: 0 | P175: 0
A176: 2 | B176: 2 | C176: 35 | D176: 40 | E176: 11 | F176: 30 | G176: 54 | H176: dead | J176: 9 | K176: 0 | L176: 0 | M176: 0 | N176: 0 | O176: 0 | P176: 0
A177: 2 | B177: 3 | C177: 45 | D177: 36 | E177: 15 | F177: 40 | G177: 44 | H177: dead | J177: 10 | K177: 0 | L177: 0 | M177: 0 | N177: 0 | O177: 0 | P177: 0
A178: 2 | B178: 4 | C178: 25 | D178: 40 | E178: 14 | F178: 42 | G178: 30 | H178: dead | J178: 11 | K178: 0 | L178: 0 | M178: 0 | N178: 0 | O178: 0 | P178: 0
A179: 2 | B179: 5 | C179: 38 | D179: 20 | E179: 8 | F179: 13 | G179: 17 | H179: dead | J179: 12 | K179: 0 | L179: 0 | M179: 0 | N179: 0 | O179: 0 | P179: 0
A180: 2 | B180: 6 | C180: 30 | D180: 17 | E180: 5 | F180: dead | G180: 22 | H180: dead | J180: 14 | K180: 0 | L180: 0 | M180: 0 | N180: 0 | O180: 0 | P180: 0
A181: 2 | B181: 7 | C181: 28 | D181: dead | E181: dead | F181: dead | G181: 19 | H181: dead | J181: 16 | K181: 0 | L181: 0 | M181: 0 | N181: 0 | O181: 0 | P181: 0
A182: 2 | B182: 8 | C182: 57 | D182: dead | E182: dead | F182: 38 | G182: 29 | H182: dead | J182: 18 | K182: 0 | L182: 0 | M182: 0 | N182: 0 | O182: 0 | P182: 0
A183: 2 | B183: 9 | C183: 48 | D183: dead | E183: dead | F183: dead | G183: 35 | H183: dead | J183: 20 | K183: 0 | L183: 0 | M183: 0 | N183: 0 | O183: 0 | P183: 0
A184: 2 | B184: 10 | C184: 36 | D184: dead | E184: dead | F184: dead | G184: dead | H184: dead | J184: 22 | K184: 0 | L184: 0 | M184: 0 | N184: 0 | O184: 0 | P184: 0
A185: 3 | B185: 1 | C185: 75 | D185: 19 | E185: dead | F185: 58 | G185: 52 | H185: dead | J185: 24 | K185: =C859 -> 0.02777777778 | L185: 0 | M185: 0 | N185: 0 | O185: 0 | P185: 0
A186: 3 | B186: 2 | C186: 51 | D186: 33 | E186: dead | F186: 27 | G186: 27 | H186: dead | J186: 26 | K186: =C913 -> 0.1944444444 | L186: 0.1111111111 | M186: 0 | N186: 0.05555555556 | O186: 0.1388888889 | P186: 0
A187: 3 | B187: 3 | C187: 57 | D187: 37 | E187: dead | F187: 36 | G187: 44 | H187: dead | J187: 28 | K187: =C967 -> 0.2777777778 | L187: 0.25 | M187: 0 | N187: 0.05555555556 | O187: 0.1944444444 | P187: 0
A188: 3 | B188: 4 | C188: 43 | D188: 41 | E188: 8 | F188: 22 | G188: 37 | H188: dead | J188: 30 | K188: =C1021 -> 0.3333333333 | L188: 0.3611111111 | M188: 0 | N188: 0.1388888889 | O188: 0.2777777778 | P188: 0
A189: 3 | B189: 5 | C189: 23 | D189: 47 | E189: 9 | F189: 78 | G189: 26 | H189: dead | J189: 32 | K189: =C1075 -> 0.3611111111 | L189: 0.4166666667 | M189: 0 | N189: 0.1388888889 | O189: 0.3055555556 | P189: 0
A190: 3 | B190: 6 | C190: 28 | D190: 50 | E190: 8 | F190: 35 | G190: 20 | H190: dead | J190: 34 | K190: =C1087/36 -> 0.3611111111 | L190: 0.3611111111 | M190: 0 | N190: 0.1666666667 | O190: 0.2777777778 | P190: 0
A191: 3 | B191: 7 | C191: 38 | D191: 35 | E191: dead | F191: 22 | G191: 22 | H191: dead | J191: 37 | K191: =C1100/36 -> 0.3611111111 | L191: 0.3611111111 | M191: 0 | N191: 0.1944444444 | O191: 0.2777777778 | P191: 0
A192: 3 | B192: 8 | C192: 28 | D192: 65 | E192: dead | F192: 43 | G192: dead | H192: dead | J192: 38 | K192: =C1113/36 -> 0.3333333333 | L192: 0.3055555556 | M192: 0 | N192: 0.1388888889 | O192: 0.2777777778 | P192: 0
A193: 3 | B193: 9 | C193: dead | D193: 45 | E193: dead | F193: dead | G193: dead | H193: dead | J193: 39 | K193: =C1126/36 -> 0.3333333333 | L193: 0.3055555556 | M193: 0 | N193: 0.1388888889 | O193: 0.2777777778 | P193: 0
A194: 3 | B194: 10 | C194: dead | D194: dead | E194: dead | F194: dead | G194: dead | H194: dead | J194: 41 | K194: =C1139/36 -> 0.3611111111 | L194: 0.2777777778 | M194: 0 | N194: 0.1388888889 | O194: 0.2777777778 | P194: 0
A195: 4 | B195: 1 | C195: 38 | D195: 22 | E195: 9 | F195: 18 | G195: 36 | H195: 16
A196: 4 | B196: 2 | C196: 41 | D196: 17 | E196: 7 | F196: 47 | G196: 33 | H196: dead
A197: 4 | B197: 3 | C197: 49 | D197: 27 | E197: dead | F197: 23 | G197: 44 | H197: dead
A198: 4 | B198: 4 | C198: 43 | D198: 42 | E198: dead | F198: 15 | G198: 34 | H198: dead
A199: 4 | B199: 5 | C199: 33 | D199: 33 | E199: dead | F199: 35 | G199: 17 | H199: dead
A200: 4 | B200: 6 | C200: dead | D200: 41 | E200: dead | F200: 23 | G200: 43 | H200: dead
A201: 4 | B201: 7 | C201: 17 | D201: 45 | E201: dead | F201: dead | G201: 27 | H201: dead
A202: 4 | B202: 8 | C202: 24 | D202: 32 | E202: dead | F202: dead | G202: 48 | H202: dead
A203: 4 | B203: 9 | C203: 36 | D203: dead | E203: dead | F203: dead | G203: 24 | H203: dead
A204: 4 | B204: 10 | C204: 15 | D204: dead | E204: dead | F204: dead | G204: dead | H204: dead
A205: average: | C205: =AVERAGE(C165:C204) -> 36.15625 | D205: =AVERAGE(D165:D204) -> 36.85185185 | E205: 9.333333333 | F205: 33.41666667 | G205: 32.33333333 | H205: 16
A206: median: | C206: =MEDIAN(C165:C204) -> 36 | D206: =MEDIAN(D165:D204) -> 38 | E206: 8.5 | F206: 32.5 | G206: 33 | H206: 16
... 874 more rows

Sheet mesh_miniEXP_3rd4th
A1: 5x larvae 3rd instar, 5x 4th instar reared on small leaves in petri dish
A3: 0 dpt
A4: larva No | B4: younger (3rd) | C4: older (4th)
A5: 1 | B5: 11 | C5: 45
A6: 2 | B6: 10 | C6: 40
A7: 3 | B7: 8 | C7: 42
A8: 4 | B8: 10 | C8: 40
A9: 5 | B9: 11 | C9: 42
A10: average: | B10: =AVERAGE(B5:B9) -> 10 | C10: =AVERAGE(C5:C9) -> 41.8
A11: median: | B11: =MEDIAN(B5:B9) -> 10 | C11: =MEDIAN(C5:C9) -> 42
A12: SD: | B12: =STDEV(B5:B9) -> 1.224744871 | C12: =STDEV(C5:C9) -> 2.049390153
A14: 1 dpt
A15: larva No | B15: younger (3rd) | C15: older (4th)
A16: 1 | B16: 15 | C16: 57
A17: 2 | B17: 20 | C17: 62
A18: 3 | B18: 16 | C18: 57
A19: 4 | B19: 17 | C19: 56
A20: 5 | B20: dead | C20: dead
A21: average: | B21: =AVERAGE(B16:B20) -> 17 | C21: =AVERAGE(C16:C20) -> 58
A22: median: | B22: =MEDIAN(B16:B20) -> 16.5 | C22: =MEDIAN(C16:C20) -> 57
A23: SD: | B23: =STDEV(B16:B20) -> 2.160246899 | C23: =STDEV(C16:C20) -> 2.708012802
A25: 2 dpt
A26: larva No | B26: younger (3rd) | C26: older (4th)
A27: 1 | B27: 11 | C27: 48
A28: 2 | B28: 11 | C28: 47
A29: 3 | B29: 15 | C29: 53
A30: 4 | B30: 11 | C30: 42
A31: 5 | B31: dead | C31: dead
A32: average: | B32: =AVERAGE(B27:B31) -> 12 | C32: =AVERAGE(C27:C31) -> 47.5
A33: median: | B33: =MEDIAN(B27:B31) -> 11 | C33: =MEDIAN(C27:C31) -> 47.5
A34: SD: | B34: =STDEV(B27:B31) -> 2 | C34: =STDEV(C27:C31) -> 4.509249753
A36: 3 dpt
A37: larva No | B37: younger (3rd) | C37: older (4th)
A38: 1 | B38: 10 | C38: 43 | D38: sampling guts from 4th instar larvae and whole 3rd instar larvae (RI067-072)
A39: 2 | B39: 8 | C39: 43
A40: 3 | B40: 13 | C40: dead
A41: 4 | B41: 8 | C41: dead
A42: 5 | B42: dead | C42: dead
A43: average: | B43: =AVERAGE(B38:B42) -> 9.75 | C43: =AVERAGE(C38:C42) -> 43
A44: median: | B44: =MEDIAN(B38:B42) -> 9 | C44: =MEDIAN(C38:C42) -> 43
A45: SD: | B45: =STDEV(B38:B42) -> 2.362907813 | C45: =STDEV(C38:C42) -> 0
A46: END OF EXPERIMENT

Sheet mesh_1dpt_RNAseq__exp_potted
A1: 0 dpt - 15.6. (4th instar larvae to be disected and gut tissue and contents sampled for RNAseq) | J1: 1 dpt (4th instar larvae to be disected and gut tissue and contents sampled for RNAseq)
A2: biol repl | B2: larva No | C2: mesh | D2: egfp | J2: biol repl | K2: larva No | L2: mesh | M2: egfp
A3: 1 | B3: 1 | C3: 95 | D3: 142 | J3: 1 | K3: 1 | L3: 132 | M3: dead (85)
A4: 1 | B4: 2 | C4: 111 | D4: 119 | J4: 1 | K4: 2 | L4: 133 | M4: 123
A5: 1 | B5: 3 | C5: 89 | D5: 85 | J5: 1 | K5: 3 | L5: 140 | M5: 117
A6: 1 | B6: 4 | C6: 112 | D6: 101 | J6: 1 | K6: 4 | L6: 120 | M6: 110
A7: 2 | B7: 1 | C7: 95 | D7: 93 | J7: 2 | K7: 1 | L7: 148 | M7: 112
A8: 2 | B8: 2 | C8: 97 | D8: 96 | J8: 2 | K8: 2 | L8: 126 | M8: 107
A9: 2 | B9: 3 | C9: 100 | D9: 117 | J9: 2 | K9: 3 | L9: 106 | M9: 163
A10: 2 | B10: 4 | C10: 119 | D10: 88 | J10: 2 | K10: 4 | L10: 139 | M10: 114
A11: 3 | B11: 1 | C11: 119 | D11: 141 | J11: 3 | K11: 1 | L11: 134 | M11: 188
A12: 3 | B12: 2 | C12: 80 | D12: 111 | J12: 3 | K12: 2 | L12: 147 | M12: 151
A13: 3 | B13: 3 | C13: 137 | D13: 122 | J13: 3 | K13: 3 | L13: 141 | M13: 138
A14: 3 | B14: 4 | C14: 103 | D14: 111 | J14: 3 | K14: 4 | L14: 78 | M14: did not eat (102)
A15: 4 | B15: 1 | C15: 143 | D15: 127 | J15: 4 | K15: 1 | L15: 114 | M15: 127
A16: 4 | B16: 2 | C16: 138 | D16: 136 | J16: 4 | K16: 2 | L16: 104 | M16: 96
A17: 4 | B17: 3 | C17: 91 | D17: 110 | J17: 4 | K17: 3 | L17: 161 | M17: 100
A18: 4 | B18: 4 | C18: 88 | D18: 98 | J18: 4 | K18: 4 | L18: 165 | M18: 116
A19: average: | C19: =AVERAGE(C3:C18) -> 107.3125 | D19: =AVERAGE(D3:D18) -> 112.3125 | J19: average: | L19: =AVERAGE(L3:L18) -> 130.5 | M19: =AVERAGE(M3:M18) -> 125.8571429
A20: median: | C20: =MEDIAN(C3:C18) -> 101.5 | D20: =MEDIAN(D3:D18) -> 111 | J20: median: | L20: =MEDIAN(L3:L18) -> 133.5 | M20: =MEDIAN(M3:M18) -> 116.5
A21: SD: | C21: =STDEV(C3:C18) -> 19.33466231 | D21: =STDEV(D3:D18) -> 18.18321112 | J21: SD: | L21: =STDEV(L3:L18) -> 22.29200156 | M21: =STDEV(M3:M18) -> 25.87798929
A22: t-test p-val | D22: =_xlfn.T.TEST(C3:C18,D3:D18,2,2) -> 0.4570031741 | J22: t-test p-val | M22: =_xlfn.T.TEST(L3:L18,M3:M18,2,2) -> 0.6015951025
J23: END OF EXPERIMENT
A24: mesh experiment in greenhouse condition on potted plants
A25: 0 dpt; 4th instar larvae grown on potted plants left for observation of pupation/adult emergence
A26: larva No | B26: H2O | C26: egfp | D26: mesh | N26: 5 dpt; checking how many larvae died
A27: 1 | B27: 151 | C27: 120 | D27: 135 | O27: water | P27: dsEGFP | Q27: dsMESH
A28: 2 | B28: 117 | C28: 167 | D28: 104 | N28: died | O28: 1 | P28: 2 | Q28: 1
A29: 3 | B29: 150 | C29: 145 | D29: 120 | N29: pupating | O29: =30-O28 -> 29 | P29: =30-P28 -> 28 | Q29: 28
A30: 4 | B30: 120 | C30: 95 | D30: 135
A31: 5 | B31: 96 | C31: 120 | D31: 161 | N31: 12 dpt; checking how many larvae died
A32: 6 | B32: 131 | C32: 91 | D32: 129 | O32: water | P32: dsEGFP | Q32: dsMESH
A33: 7 | B33: 170 | C33: 124 | D33: 130 | N33: died | O33: 1 | P33: 2 | Q33: 2
A34: 8 | B34: 108 | C34: 118 | D34: 104 | N34: pupating | O34: =30-O33 -> 29 | P34: =30-P33 -> 28 | Q34: 28
A35: 9 | B35: 146 | C35: 142 | D35: 85
A36: 10 | B36: 163 | C36: 182 | D36: 119 | N36: checking beetle emergence
A37: 11 | B37: 147 | C37: 82 | D37: 105 | N37: dpt | O37: water | P37: dsEGFP | Q37: dsMESH
A38: 12 | B38: 161 | C38: 133 | D38: 117 | N38: 12 | O38: 0 | P38: 0 | Q38: 0
A39: 13 | B39: 91 | C39: 146 | D39: 156 | N39: 16 | O39: 0 | P39: 5 | Q39: 0
A40: 14 | B40: 125 | C40: 136 | D40: 101 | N40: 17 | O40: 1 | P40: 17 | Q40: 0
A41: 15 | B41: 133 | C41: 132 | D41: 156 | N41: 18 | O41: 8 | P41: 22 | Q41: 0
A42: 16 | B42: 111 | C42: 84 | D42: 123 | N42: 19 | O42: 15 | P42: 22 | Q42: 1
A43: 17 | B43: 101 | C43: 118 | D43: 128 | N43: 20 | O43: 20 | P43: 22 | Q43: 3
A44: 18 | B44: 112 | C44: 144 | D44: 169 | N44: 21 | O44: 22 | P44: 22 | Q44: 3
A45: 19 | B45: 93 | C45: 81 | D45: 124 | N45: 22 | O45: 22 | P45: 22 | Q45: 3
A46: 20 | B46: 198 | C46: 165 | D46: 111
A47: 21 | B47: 139 | C47: 130 | D47: 168
A48: 22 | B48: 122 | C48: 124 | D48: 132
A49: 23 | B49: 132 | C49: 156 | D49: 113
A50: 24 | B50: 127 | C50: 163 | D50: 72 | N50: checking beetle emergence %
A51: 25 | B51: 121 | C51: 147 | D51: 179 | N51: dpt | O51: water | P51: dsEGFP | Q51: dsMESH
A52: 26 | B52: 141 | C52: 154 | D52: 140 | N52: 12 | O52: =O38/$O$34 -> 0 | P52: =P38/$P$34 -> 0 | Q52: =Q38/$Q$34 -> 0
A53: 27 | B53: 147 | C53: 142 | D53: 205 | N53: =N54-0.000000001 -> 16 | O53: =O52 -> 0 | P53: =P52 -> 0 | Q53: 0 | W53: A | AH53: B
A54: 28 | B54: 135 | C54: 149 | D54: 155 | N54: 16 | O54: =O39/$O$34 -> 0 | P54: =P39/$P$34 -> 0.1785714286 | Q54: =Q39/$Q$34 -> 0
A55: 29 | B55: 125 | C55: 96 | D55: 122 | N55: =N56-0.000000001 -> 17 | O55: =O54 -> 0 | P55: =P54 -> 0.1785714286 | Q55: =Q54 -> 0
A56: 30 | B56: 140 | C56: 146 | D56: 160 | N56: 17 | O56: =O40/$O$34 -> 0.03448275862 | P56: =P40/$P$34 -> 0.6071428571 | Q56: =Q40/$Q$34 -> 0
A57: average: | B57: =AVERAGE(B27:B56) -> 131.7666667 | C57: =AVERAGE(C27:C56) -> 131.0666667 | D57: 131.9333333 | N57: =N58-0.000000001 -> 18 | O57: =O56 -> 0.03448275862 | P57: =P56 -> 0.6071428571 | Q57: =Q56 -> 0
A58: median: | B58: =MEDIAN(B27:B56) -> 131.5 | C58: =MEDIAN(C27:C56) -> 134.5 | D58: 128.5 | N58: 18 | O58: =O41/$O$34 -> 0.275862069 | P58: =P41/$P$34 -> 0.7857142857 | Q58: =Q41/$Q$34 -> 0
A59: SD: | B59: =STDEV(B27:B56) -> 24.01534471 | C59: =STDEV(C27:C56) -> 26.78642648 | D59: 28.93027687 | N59: =N60-0.000000001 -> 19 | O59: =O58 -> 0.275862069 | P59: =P58 -> 0.7857142857 | Q59: =Q58 -> 0
A60: t-test p-val | C60: =_xlfn.T.TEST(B27:B56,C27:C56,2,3) -> 0.9154993664 | D60: =_xlfn.T.TEST(B27:B56,D27:D56,2,3) -> 0.9807162074 | N60: 19 | O60: =O42/$O$34 -> 0.5172413793 | P60: =P42/$P$34 -> 0.7857142857 | Q60: =Q42/$Q$34 -> 0.03571428571
N61: =N62-0.000000001 -> 20 | O61: =O60 -> 0.5172413793 | P61: =P60 -> 0.7857142857 | Q61: =Q60 -> 0.03571428571
A62: 23dpt; alive beetle weights | N62: 20 | O62: =O43/$O$34 -> 0.6896551724 | P62: =P43/$P$34 -> 0.7857142857 | Q62: =Q43/$Q$34 -> 0.1071428571
B63: H2O | C63: egfp | N63: =N64-0.000000001 -> 21 | O63: =O62 -> 0.6896551724 | P63: =P62 -> 0.7857142857 | Q63: =Q62 -> 0.1071428571
A64: 1 | B64: 111 | C64: 115 | N64: 21 | O64: =O44/$O$34 -> 0.7586206897 | P64: =P44/$P$34 -> 0.7857142857 | Q64: =Q44/$Q$34 -> 0.1071428571
A65: 2 | B65: 185 | C65: 115 | N65: =N66-0.000000001 -> 22 | O65: =O64 -> 0.7586206897 | P65: =P64 -> 0.7857142857 | Q65: =Q64 -> 0.1071428571
A66: 3 | B66: 135 | C66: 106 | N66: 22 | O66: =O45/$O$34 -> 0.7586206897 | P66: =P45/$P$34 -> 0.7857142857 | Q66: =Q45/$Q$34 -> 0.1071428571 | R66: from the six adults, four looked clearly deformed
A67: 4 | B67: 124 | C67: 189
A68: 5 | B68: 167 | C68: 131
A69: 6 | B69: 158 | C69: 148 | N69: 23dpt; checking beetle survival
A70: 7 | B70: 116 | C70: 127 | O70: water | P70: dsEGFP | Q70: dsMESH
A71: 8 | B71: 99 | C71: 176 | N71: larvae put onto plants | O71: 30 | P71: 30 | Q71: 30
A72: 9 | B72: 127 | C72: 174 | N72: larvae died before pupating | O72: 1 | P72: 2 | Q72: 2
A73: 10 | B73: 158 | C73: 164 | N73: emerged adults - alive | O73: 21 | P73: 22 | Q73: 0
A74: 11 | B74: 140 | C74: 142 | N74: emerged adults - dead | O74: 0 | P74: 0 | Q74: 3
A75: 12 | B75: 137 | C75: 133 | N75: adults found dead in soil | O75: 0 | P75: 0 | Q75: 6
A76: 13 | B76: 170 | C76: 155 | N76: larvae found dead in soil | O76: 0 | P76: 0 | Q76: 2
A77: 14 | B77: 136 | C77: 184
A78: 15 | B78: 164 | C78: 138
A79: 16 | B79: 129 | C79: 188 | N79: checking beetle emergence %
A80: 17 | B80: 139 | C80: 133 | N80: dpt | O80: water | P80: dsEGFP | Q80: dsMESH
A81: 18 | B81: 139 | C81: 128 | N81: 12 | O81: 0 | P81: 0 | Q81: 0
A82: 19 | B82: 115 | C82: 153 | N82: 16 | O82: 0 | P82: 0.1785714286 | Q82: 0
A83: 20 | B83: 160 | C83: 133 | N83: 17 | O83: 0.03448275862 | P83: 0.6071428571 | Q83: 0
A84: 21 | B84: 133 | C84: 150 | N84: 18 | O84: 0.275862069 | P84: 0.7857142857 | Q84: 0
A85: 22 | C85: 136 | N85: 19 | O85: 0.5172413793 | P85: 0.7857142857 | Q85: 0.03571428571
A86: average: | B86: =AVERAGE(B64:B85) -> 140.0952381 | C86: =AVERAGE(C64:C85) -> 146.2727273 | N86: 20 | O86: 0.6896551724 | P86: 0.7857142857 | Q86: 0.1071428571
A87: median: | B87: =MEDIAN(B64:B85) -> 137 | C87: =MEDIAN(C64:C85) -> 140 | N87: =N88-0.000000001 -> 22 | O87: 0.7586206897 | P87: 0.7857142857 | Q87: 0.1071428571
A88: SD: | B88: =STDEV(B64:B85) -> 21.96338945 | C88: =STDEV(C64:C85) -> 24.23335328 | N88: 22 | O88: 0.7586206897 | P88: 0.7857142857 | Q88: 0.1071428571
A89: t-test p-val | C89: =_xlfn.T.TEST(B64:B84,C64:C85,2,3) -> 0.3858374291
A100: END OF EXPERIMENT

Sheet MeJA_exp
A1: 4 dpt - 26.6. (2nd instar larvae were placed at 0 dpt on MeJA-induced and non-induced leaves; weighing and survival count was performed every 2 days; fresh non-induced and MeJA-induced leaves were replaced every day)
A2: biol repl | B2: larva No | C2: egfp_NI | D2: egfp_MeJA | E2: alas_NI | F2: alas_MeJA | G2: JHBP_NI | H2: JHBP_MeJA
A3: 1 | B3: 1 | C3: 13 | D3: 12 | E3: 12 | F3: 27 | G3: 29 | H3: 15 | K3: mean larval mass | Q3: mass SE
A4: 1 | B4: 2 | C4: 16 | D4: 16 | E4: 22 | F4: 22 | G4: 27 | H4: 24 | J4: dpt | K4: dsEGFP_NI | L4: dsEGPF_MeJA | M4: dsALAS_NI | N4: dsALAS_MeJA | O4: dsJHBP_NI | P4: dsJHBP_MeJA | Q4: dsEGFP_NI | R4: dsEGPF_MeJA | S4: dsALAS_NI | T4: dsALAS_MeJA | U4: dsJHBP_NI | V4: dsJHBP_MeJA
A5: 1 | B5: 3 | C5: 11 | D5: 21 | E5: 12 | F5: 28 | G5: 12 | H5: 14 | J5: 4 | K5: =+C23 -> 15.83333333 | L5: =+D23 -> 12.73684211 | M5: 12.36842105 | N5: 18.57894737 | O5: 21.47368421 | P5: 15.3 | Q5: =+C25 -> 0.9678660578 | R5: =+D25 -> 1.002336452 | S5: 0.7234582316 | T5: 1.366901991 | U5: 1.461293987 | V5: 1.028795924
A6: 1 | B6: 4 | C6: 15 | D6: 17 | E6: 16 | F6: 24 | G6: 20 | H6: 15 | J6: 6 | K6: =+C73 -> 25.70588235 | L6: =+D73 -> 19.5 | M6: 15.35294118 | N6: 22.05555556 | O6: 35.16666667 | P6: 20.2 | Q6: =+C75 -> 1.574731536 | R6: =+D75 -> 1.761099256 | S6: 1.153638745 | T6: 2.410116207 | U6: 2.408624211 | V6: 1.567095873
A7: 1 | B7: 5 | C7: 11 | D7: 23 | E7: 11 | F7: 12 | G7: 15 | H7: 16 | J7: 8 | K7: =+C123 -> 36.9375 | L7: =+D123 -> 30.33333333 | M7: 19.35714286 | N7: 26.8 | O7: 48.72222222 | P7: 28.29411765 | Q7: =+C125 -> 2.634981025 | R7: =+D125 -> 3.039815157 | S7: 2.069201152 | T7: 2.688865932 | U7: 3.698811857 | V7: 2.436396809
A8: 1 | B8: 6 | C8: 19 | D8: 13 | E8: 13 | F8: 11 | G8: 19 | H8: 23 | J8: 10 | K8: =+C173 -> 47.57142857 | L8: =+D173 -> 38 | M8: 19.92857143 | N8: 40.8 | O8: 57 | P8: 33.29411765 | Q8: =+C175 -> 3.736220103 | R8: =+D175 -> 4.003844307 | S8: 1.849041926 | T8: 3.434789335 | U8: 4.169082633 | V8: 3.999816172
A9: 1 | B9: 7 | C9: 15 | D9: 11 | E9: 12 | F9: 11 | G9: 32 | H9: 17 | J9: 12 | K9: =+C223 -> 54.64285714 | L9: =+D223 -> 44.58333333 | M9: 21.8 | N9: 38.7 | O9: 72.125 | P9: 39.38461538 | Q9: =+C225 -> 5.220232196 | R9: =+D225 -> 3.906240152 | S9: 1.760050504 | T9: 3.238741182 | U9: 5.128921264 | V9: 4.546554063
A10: 1 | B10: 8 | C10: 13 | D10: 11 | E10: 10 | F10: 10 | G10: 13 | H10: 22 | J10: 14 | K10: =+C273 -> 75.16666667 | L10: =+D273 -> 53.3 | M10: 21.66666667 | N10: 38.88888889 | O10: 77.13333333 | P10: 45.125 | Q10: =+C275 -> 5.699149325 | R10: =+D275 -> 4.59716096 | S10: 1.820027472 | T10: 3.95038676 | U10: 4.999904761 | V10: 4.703247358
A11: 1 | B11: 9 | C11: 11 | D11: 11 | E11: 10 | F11: 25 | G11: 33 | H11: 6
A12: 1 | B12: 10 | C12: 17 | D12: dead | E12: 7 | F12: dead | G12: 22 | H12: 13 | AA12: A | AO12: B
A13: 2 | B13: 1 | C13: dead | D13: 13 | E13: 14 | F13: 23 | G13: 13 | H13: 15
A14: 2 | B14: 2 | C14: 18 | D14: 10 | E14: 14 | F14: 18 | G14: 16 | H14: 18
A15: 2 | B15: 3 | C15: 10 | D15: 5 | E15: 10 | F15: 14 | G15: 20 | H15: 13
A16: 2 | B16: 4 | C16: dead | D16: 8 | E16: 13 | F16: 20 | G16: 29 | H16: 18
A17: 2 | B17: 5 | C17: 17 | D17: 14 | E17: 10 | F17: 12 | G17: 17 | H17: 9
A18: 2 | B18: 6 | C18: 26 | D18: 12 | E18: 15 | F18: 18 | G18: 28 | H18: 13
A19: 2 | B19: 7 | C19: 24 | D19: 7 | E19: 14 | F19: 17 | G19: 20 | H19: 11
A20: 2 | B20: 8 | C20: 14 | D20: 13 | E20: 11 | F20: 14 | G20: 21 | H20: 10
A21: 2 | B21: 9 | C21: 17 | D21: 9 | E21: dead | F21: 28 | G21: 22 | H21: 19
A22: 2 | B22: 10 | C22: 18 | D22: 16 | E22: 9 | F22: 19 | G22: dead | H22: 15
A23: average: | C23: =AVERAGE(C3:C22) -> 15.83333333 | D23: =AVERAGE(D3:D22) -> 12.73684211 | E23: =AVERAGE(E3:E22) -> 12.36842105 | F23: 18.57894737 | G23: 21.47368421 | H23: 15.3
A24: median: | C24: =MEDIAN(C3:C22) -> 15.5 | D24: =MEDIAN(D3:D22) -> 12 | E24: =MEDIAN(E3:E22) -> 12 | F24: 18 | G24: 20 | H24: 15
A25: SE: | C25: =STDEV(C3:C22)/SQRT(COUNTA(C3:C22)) -> 0.9678660578 | D25: =STDEV(D3:D22)/SQRT(COUNTA(D3:D22)) -> 1.002336452 | E25: 0.7234582316 | F25: 1.366901991 | G25: 1.461293987 | H25: 1.028795924
A26: dead larvae: | C26: =COUNTIF(C3:C22,"dead")/36 -> 0.05555555556 | D26: =COUNTIF(D3:D22,"dead")/36 -> 0.02777777778 | E26: 0.02777777778 | F26: 0.02777777778 | G26: 0.02777777778 | H26: 0
A27: t-test p-val | D27: =_xlfn.T.TEST(C3:C22,D3:D22,2,3) -> 0.03961530724 | E27: * | F27: =_xlfn.T.TEST(E3:E22,F3:F22,2,3) -> 0.0005457226925 | G27: *** | H27: =_xlfn.T.TEST(G3:G22,H3:H22,2,3) -> 0.00183734132 | I27: **
D28: expected | F28: strange!!! | H28: expected
K45: very interesting that the mass of larvae improves when feeding larvae with MeJA-induced potato leaves + alas dsRNA!!!
K46: HAS TO BE REPEATED TO CONFIRM!!!
K47: for ALAS could D-Aminolevulinic acid (ALA) formed in induced potato would rescue the silenced alas_RNAi phenotype?? ALA is accumulated by wounding in plants!
K48: for JHBP_NI the results are different compared to first experiment - there mass gain was similar to that of egfp group or slightly lower
A51: 6 dpt
A52: biol repl | B52: larva No | C52: egfp_NI | D52: egfp_MeJA | E52: alas_NI | F52: alas_MeJA | G52: JHBP_NI | H52: JHBP_MeJA
A53: 1 | B53: 1 | C53: 27 | D53: 22 | E53: 13 | F53: 10 | G53: 21 | H53: 23
A54: 1 | B54: 2 | C54: 27 | D54: 16 | E54: 7 | F54: 47 | G54: 49 | H54: 6
A55: 1 | B55: 3 | C55: 16 | D55: 25 | E55: 11 | F55: 18 | G55: 26 | H55: 30
A56: 1 | B56: 4 | C56: 16 | D56: 29 | E56: 14 | F56: 31 | G56: 41 | H56: 18
A57: 1 | B57: 5 | C57: 18 | D57: 39 | E57: 26 | F57: 10 | G57: 52 | H57: 34
A58: 1 | B58: 6 | C58: 18 | D58: 11 | E58: 16 | F58: 33 | G58: 57 | H58: 16
A59: 1 | B59: 7 | C59: 30 | D59: 25 | E59: 14 | F59: 36 | G59: 36 | H59: 21
A60: 1 | B60: 8 | C60: 16 | D60: 15 | E60: 26 | F60: 6 | G60: 26 | H60: 20
A61: 1 | B61: 9 | C61: 30 | D61: dead | E61: 16 | F61: dead | G61: 30 | H61: 29
A62: 1 | B62: 10 | C62: 23 | D62: dead | E62: 11 | F62: dead | G62: 30 | H62: 19
A63: 2 | B63: 1 | C63: 35 | D63: 8 | E63: 13 | F63: 18 | G63: 22 | H63: 22
A64: 2 | B64: 2 | C64: 23 | D64: 18 | E64: 13 | F64: 16 | G64: 32 | H64: 26
A65: 2 | B65: 3 | C65: 32 | D65: 25 | E65: 18 | F65: 16 | G65: 43 | H65: 8
A66: 2 | B66: 4 | C66: 39 | D66: 16 | E66: 18 | F66: 32 | G66: 30 | H66: 14
A67: 2 | B67: 5 | C67: 30 | D67: 20 | E67: 11 | F67: 10 | G67: 31 | H67: 18
A68: 2 | B68: 6 | C68: 29 | D68: 27 | E68: 13 | F68: 29 | G68: 49 | H68: 13
A69: 2 | B69: 7 | C69: 28 | D69: 15 | E69: 21 | F69: 21 | G69: 27 | H69: 23
A70: 2 | B70: 8 | C70: dead | D70: 8 | E70: dead | F70: 23 | G70: 31 | H70: 16
A71: 2 | B71: 9 | C71: dead | D71: 15 | E71: dead | F71: 19 | G71: dead | H71: 24
A72: 2 | B72: 10 | C72: dead | D72: 17 | E72: dead | F72: 22 | G72: dead | H72: 24
A73: average: | C73: =AVERAGE(C53:C72) -> 25.70588235 | D73: =AVERAGE(D53:D72) -> 19.5 | E73: =AVERAGE(E53:E72) -> 15.35294118 | F73: =AVERAGE(F53:F72) -> 22.05555556 | G73: =AVERAGE(G53:G72) -> 35.16666667 | H73: =AVERAGE(H53:H72) -> 20.2
A74: median: | C74: =MEDIAN(C53:C72) -> 27 | D74: =MEDIAN(D53:D72) -> 17.5 | E74: =MEDIAN(E53:E72) -> 14 | F74: 20 | G74: 31 | H74: 20.5
A75: SE: | C75: =STDEV(C53:C72)/SQRT(COUNTA(C53:C72)) -> 1.574731536 | D75: =STDEV(D53:D72)/SQRT(COUNTA(D53:D72)) -> 1.761099256 | E75: 1.153638745 | F75: 2.410116207 | G75: 2.408624211 | H75: 1.567095873
A76: dead larvae: | C76: =COUNTIF(C53:C72,"dead")/36 -> 0.08333333333 | D76: =COUNTIF(D53:D72,"dead")/36 -> 0.05555555556 | E76: 0.08333333333 | F76: 0.05555555556 | G76: 0.05555555556 | H76: 0
A77: t-test p-val | D77: =_xlfn.T.TEST(C53:C72,D53:D72,2,3) -> 0.01931115539 | E77: * | F77: =_xlfn.T.TEST(E53:E72,F53:F72,2,3) -> 0.0260993243 | G77: * | H77: =_xlfn.T.TEST(G53:G72,H53:H72,2,3) -> 2.490667464e-05 | I77: ***
D78: expected | F78: strange!!! | H78: expected
J82: JHBP silencing has NO effect on larval mass gain when fed with induced plants!!!!
K84: mortality %
J85: dpt | K85: dsEGFP_NI | L85: dsEGPF_MeJA | M85: dsALAS_NI | N85: dsALAS_MeJA | O85: dsJHBP_NI | P85: dsJHBP_MeJA
J86: 0 | K86: 1 | L86: 1 | M86: 1 | N86: 1 | O86: 1 | P86: 1
J87: =J88-0.000000001 -> 3.999999999 | K87: =K86 -> 1 | L87: =L86 -> 1 | M87: 1 | N87: 1 | O87: 1 | P87: 1
J88: 4 | K88: =1-C26 -> 0.9444444444 | L88: =1-D26 -> 0.9722222222 | M88: 0.9722222222 | N88: 0.9722222222 | O88: 0.9722222222 | P88: 1
J89: =J90-0.000000001 -> 5.999999999 | K89: =K88 -> 0.9444444444 | L89: =L88 -> 0.9722222222 | M89: 0.9722222222 | N89: 0.9722222222 | O89: 0.9722222222 | P89: 1
J90: 6 | K90: =1-C76 -> 0.9166666667 | L90: =1-D76 -> 0.9444444444 | M90: 0.9166666667 | N90: 0.9444444444 | O90: 0.9444444444 | P90: 1
J91: =J92-0.000000001 -> 7.999999999 | K91: =K90 -> 0.9166666667 | L91: =L90 -> 0.9444444444 | M91: 0.9166666667 | N91: 0.9444444444 | O91: 0.9444444444 | P91: 1
J92: 8 | K92: =1-C126 -> 0.8888888889 | L92: =1-D126 -> 0.8611111111 | M92: 0.8333333333 | N92: 0.8611111111 | O92: 0.9444444444 | P92: 0.9166666667
J93: =J94-0.000000001 -> 9.999999999 | K93: =K92 -> 0.8888888889 | L93: =L92 -> 0.8611111111 | M93: 0.8333333333 | N93: 0.8611111111 | O93: 0.9444444444 | P93: 0.9166666667
J94: 10 | K94: =1-C176 -> 0.8333333333 | L94: =1-D176 -> 0.8333333333 | M94: 0.8333333333 | N94: 0.7222222222 | O94: 0.9166666667 | P94: 0.9166666667
J95: =J96-0.000000001 -> 12 | K95: =K94 -> 0.8333333333 | L95: =L94 -> 0.8333333333 | M95: 0.8333333333 | N95: 0.7222222222 | O95: 0.9166666667 | P95: 0.9166666667
J96: 12 | K96: =1-C226 -> 0.8333333333 | L96: =1-D226 -> 0.7777777778 | M96: 0.7222222222 | N96: 0.7222222222 | O96: 0.8888888889 | P96: 0.8055555556
J97: =J98-0.000000001 -> 14 | K97: =K96 -> 0.8333333333 | L97: =L96 -> 0.7777777778 | M97: 0.7222222222 | N97: 0.7222222222 | O97: 0.8888888889 | P97: 0.8055555556
J98: 14 | K98: =1-C276 -> 0.7777777778 | L98: =1-D276 -> 0.7222222222 | M98: 0.6944444444 | N98: 0.6944444444 | O98: 0.8611111111 | P98: 0.6666666667
A101: 8 dpt
A102: biol repl | B102: larva No | C102: egfp_NI | D102: egfp_MeJA | E102: alas_NI | F102: alas_MeJA | G102: JHBP_NI | H102: JHBP_MeJA
A103: 1 | B103: 1 | C103: 23 | D103: 59 | E103: 16 | F103: 20 | G103: 61 | H103: 50
A104: 1 | B104: 2 | C104: 41 | D104: 45 | E104: 15 | F104: 41 | G104: 44 | H104: 24
A105: 1 | B105: 3 | C105: 18 | D105: 34 | E105: 14 | F105: 44 | G105: 63 | H105: 17
A106: 1 | B106: 4 | C106: 36 | D106: 21 | E106: 16 | F106: 39 | G106: 56 | H106: 22
A107: 1 | B107: 5 | C107: 33 | D107: 42 | E107: 15 | F107: 11 | G107: 43 | H107: 31
A108: 1 | B108: 6 | C108: 21 | D108: 37 | E108: 31 | F108: 7 | G108: 33 | H108: 34
A109: 1 | B109: 7 | C109: 35 | D109: 19 | E109: 46 | F109: 40 | G109: 40 | H109: 43
A110: 1 | B110: 8 | C110: 46 | D110: dead | E110: 19 | F110: dead | G110: 38 | H110: 45
A111: 1 | B111: 9 | C111: 26 | D111: dead | E111: 12 | F111: dead | G111: 85 | H111: dead
A112: 1 | B112: 10 | C112: dead | D112: dead | E112: dead | F112: dead | G112: 22 | H112: dead
A113: 2 | B113: 1 | C113: 62 | D113: 37 | E113: 13 | F113: 25 | G113: 42 | H113: 19
A114: 2 | B114: 2 | C114: 44 | D114: 22 | E114: 25 | F114: 22 | G114: 72 | H114: 17
A115: 2 | B115: 3 | C115: 50 | D115: 8 | E115: 20 | F115: 32 | G115: 53 | H115: 39
A116: 2 | B116: 4 | C116: 38 | D116: 22 | E116: 13 | F116: 15 | G116: 41 | H116: 15
A117: 2 | B117: 5 | C117: 50 | D117: 45 | E117: 16 | F117: 27 | G117: 40 | H117: 30
A118: 2 | B118: 6 | C118: 34 | D118: 21 | E118: dead | F118: 19 | G118: 31 | H118: 30
A119: 2 | B119: 7 | C119: 34 | D119: 22 | E119: dead | F119: 41 | G119: 73 | H119: 20
A120: 2 | B120: 8 | C120: dead | D120: 21 | E120: dead | F120: 19 | G120: 40 | H120: 17
A121: 2 | B121: 9 | C121: dead | D121: dead | E121: dead | F121: dead | G121: dead | H121: 28
A122: 2 | B122: 10 | C122: dead | D122: dead | E122: dead | F122: dead | G122: dead | H122: dead
A123: average: | C123: =AVERAGE(C103:C122) -> 36.9375 | D123: =AVERAGE(D103:D122) -> 30.33333333 | E123: =AVERAGE(E103:E122) -> 19.35714286 | F123: 26.8 | G123: 48.72222222 | H123: 28.29411765
A124: median: | C124: =MEDIAN(C103:C122) -> 35.5 | D124: =MEDIAN(D103:D122) -> 22 | E124: =MEDIAN(E103:E122) -> 16 | F124: 25 | G124: 42.5 | H124: 28
A125: SE: | C125: =STDEV(C103:C122)/SQRT(COUNTA(C103:C122)) -> 2.634981025 | D125: =STDEV(D103:D122)/SQRT(COUNTA(D103:D122)) -> 3.039815157 | E125: 2.069201152 | F125: 2.688865932 | G125: 3.698811857 | H125: 2.436396809
A126: dead larvae: | C126: =COUNTIF(C103:C122,"dead")/36 -> 0.1111111111 | D126: =COUNTIF(D103:D122,"dead")/36 -> 0.1388888889 | E126: 0.1666666667 | F126: 0.1388888889 | G126: 0.05555555556 | H126: 0.08333333333
A127: t-test p-val | D127: =_xlfn.T.TEST(C103:C122,D103:D122,2,3) -> 0.1607097353 | F127: =_xlfn.T.TEST(E103:E122,F103:F122,2,3) -> 0.07202379874 | G127: ˙ | H127: =_xlfn.T.TEST(G103:G122,H103:H122,2,3) -> 0.0001538118971 | I127: ***
D128: expected | F128: strange!!! | H128: expected
S138: JHBP affects mortality after 6 dpt and actullay improves survival compared to egfp when feeding uninduced leaves
S139: alas and efgp moratlity independent of MeJA treatment = EXPECTED; egfp mortality unexpectedly high!!
A151: 10 dpt
A152: biol repl | B152: larva No | C152: egfp_NI | D152: egfp_MeJA | E152: alas_NI | F152: alas_MeJA | G152: JHBP_NI | H152: JHBP_MeJA
A153: 1 | B153: 1 | C153: 19 | D153: 71 | E153: 17 | F153: 22 | G153: 54 | H153: 42
A154: 1 | B154: 2 | C154: 62 | D154: 49 | E154: 33 | F154: 62 | G154: 59 | H154: 82
A155: 1 | B155: 3 | C155: 18 | D155: 55 | E155: 11 | F155: 55 | G155: 93 | H155: 54
A156: 1 | B156: 4 | C156: 46 | D156: 29 | E156: 14 | F156: 45 | G156: 38 | H156: 18
A157: 1 | B157: 5 | C157: 63 | D157: 46 | E157: 16 | F157: 52 | G157: 48 | H157: 56
A158: 1 | B158: 6 | C158: 36 | D158: 31 | E158: 40 | F158: 11 | G158: 44 | H158: 26
A159: 1 | B159: 7 | C159: 51 | D159: 16 | E159: 15 | F159: dead | G159: 68 | H159: 35
A160: 1 | B160: 8 | C160: 32 | D160: dead | E160: 22 | F160: dead | G160: 24 | H160: 24
A161: 1 | B161: 9 | C161: dead | D161: dead | E161: 15 | F161: dead | G161: 66 | H161: dead
A162: 1 | B162: 10 | C162: dead | D162: dead | E162: dead | F162: dead | G162: dead | H162: dead
A163: 2 | B163: 1 | C163: 54 | D163: 8 | E163: 17 | F163: 34 | G163: 45 | H163: 31
A164: 2 | B164: 2 | C164: 74 | D164: 55 | E164: 15 | F164: 47 | G164: 57 | H164: 47
A165: 2 | B165: 3 | C165: 39 | D165: 58 | E165: 15 | F165: 41 | G165: 49 | H165: 27
A166: 2 | B166: 4 | C166: 58 | D166: 29 | E166: 21 | F166: 39 | G166: 55 | H166: 23
A167: 2 | B167: 5 | C167: 58 | D167: 28 | E167: 28 | F167: dead | G167: 82 | H167: 28
A168: 2 | B168: 6 | C168: 56 | D168: 24 | E168: dead | F168: dead | G168: 50 | H168: 23
A169: 2 | B169: 7 | C169: dead | D169: 33 | E169: dead | F169: dead | G169: 93 | H169: 20
A170: 2 | B170: 8 | C170: dead | D170: dead | E170: dead | F170: dead | G170: 44 | H170: 11
A171: 2 | B171: 9 | C171: dead | D171: dead | E171: dead | F171: dead | G171: dead | H171: 19
A172: 2 | B172: 10 | C172: dead | D172: dead | E172: dead | F172: dead | G172: dead | H172: dead
A173: average: | C173: =AVERAGE(C153:C172) -> 47.57142857 | D173: =AVERAGE(D153:D172) -> 38 | E173: =AVERAGE(E153:E172) -> 19.92857143 | F173: 40.8 | G173: 57 | H173: 33.29411765
A174: median: | C174: =MEDIAN(C153:C172) -> 52.5 | D174: =MEDIAN(D153:D172) -> 32 | E174: =MEDIAN(E153:E172) -> 16.5 | F174: 43 | G174: 54 | H174: 27
A175: SE: | C175: =STDEV(C153:C172)/SQRT(COUNTA(C153:C172)) -> 3.736220103 | D175: =STDEV(D153:D172)/SQRT(COUNTA(D153:D172)) -> 4.003844307 | E175: 1.849041926 | F175: 3.434789335 | G175: 4.169082633 | H175: 3.999816172
A176: dead larvae: | C176: =COUNTIF(C153:C172,"dead")/36 -> 0.1666666667 | D176: =COUNTIF(D153:D172,"dead")/36 -> 0.1666666667 | E176: 0.1666666667 | F176: 0.2777777778 | G176: 0.08333333333 | H176: 0.08333333333
A177: t-test p-val | D177: =_xlfn.T.TEST(C153:C172,D153:D172,2,3) -> 0.1556987997 | F177: =_xlfn.T.TEST(E153:E172,F153:F172,2,3) -> 0.001856674398 | G177: * | H177: =_xlfn.T.TEST(G153:G172,H153:H172,2,3) -> 0.0006431138091 | I177: ***
D178: expected | F178: strange!!! | H178: expected
A201: 12 dpt
A202: biol repl | B202: larva No | C202: egfp_NI | D202: egfp_MeJA | E202: alas_NI | F202: alas_MeJA | G202: JHBP_NI | H202: JHBP_MeJA
A203: 1 | B203: 1 | C203: 48 | D203: 71 | E203: 34 | F203: 61 | G203: 107 | H203: 71
A204: 1 | B204: 2 | C204: 58 | D204: 36 | E204: 15 | F204: 25 | G204: 71 | H204: 58
A205: 1 | B205: 3 | C205: 69 | D205: 42 | E205: 16 | F205: 54 | G205: 74 | H205: 23
A206: 1 | B206: 4 | C206: 74 | D206: 53 | E206: 23 | F206: 47 | G206: 39 | H206: 81
A207: 1 | B207: 5 | C207: 54 | D207: 42 | E207: 22 | F207: 43 | G207: 50 | H207: 44
A208: 1 | B208: 6 | C208: 31 | D208: 34 | E208: dead | F208: 10 | G208: 67 | H208: 16
A209: 1 | B209: 7 | C209: 19 | D209: dead | E209: dead | F209: dead | G209: 92 | H209: 37
A210: 1 | B210: 8 | C210: 16 | D210: dead | E210: dead | F210: dead | G210: 50 | H210: 30
A211: 1 | B211: 9 | C211: dead | D211: dead | E211: dead | F211: dead | G211: dead | H211: dead
A212: 1 | B212: 10 | C212: dead | D212: dead | E212: dead | F212: dead | G212: dead | H212: dead
A213: 2 | B213: 1 | C213: 39 | D213: 26 | E213: 36 | F213: 33 | G213: 63 | H213: 47
A214: 2 | B214: 2 | C214: 67 | D214: 29 | E214: 25 | F214: 42 | G214: 75 | H214: 21
A215: 2 | B215: 3 | C215: 105 | D215: 27 | E215: 15 | F215: 36 | G215: 51 | H215: 20
A216: 2 | B216: 4 | C216: 67 | D216: 58 | E216: 15 | F216: 36 | G216: 51 | H216: 38
A217: 2 | B217: 5 | C217: 58 | D217: 80 | E217: 17 | F217: dead | G217: 84 | H217: 26
A218: 2 | B218: 6 | C218: 60 | D218: 37 | E218: dead | F218: dead | G218: 124 | H218: dead
A219: 2 | B219: 7 | C219: dead | D219: dead | E219: dead | F219: dead | G219: 90 | H219: dead
A220: 2 | B220: 8 | C220: dead | D220: dead | E220: dead | F220: dead | G220: 66 | H220: dead
A221: 2 | B221: 9 | C221: dead | D221: dead | E221: dead | F221: dead | G221: dead | H221: dead
A222: 2 | B222: 10 | C222: dead | D222: dead | E222: dead | F222: dead | G222: dead | H222: dead
A223: average: | C223: =AVERAGE(C203:C222) -> 54.64285714 | D223: =AVERAGE(D203:D222) -> 44.58333333 | E223: =AVERAGE(E203:E222) -> 21.8 | F223: 38.7 | G223: 72.125 | H223: 39.38461538
A224: median: | C224: =MEDIAN(C203:C222) -> 58 | D224: =MEDIAN(D203:D222) -> 39.5 | E224: =MEDIAN(E203:E222) -> 19.5 | F224: 39 | G224: 69 | H224: 37
A225: SE: | C225: =STDEV(C203:C222)/SQRT(COUNTA(C203:C222)) -> 5.220232196 | D225: =STDEV(D203:D222)/SQRT(COUNTA(D203:D222)) -> 3.906240152 | E225: 1.760050504 | F225: 3.238741182 | G225: 5.128921264 | H225: 4.546554063
A226: dead l%: | C226: =COUNTIF(C203:C222,"dead")/36 -> 0.1666666667 | D226: =COUNTIF(D203:D222,"dead")/36 -> 0.2222222222 | E226: 0.2777777778 | F226: 0.2777777778 | G226: 0.1111111111 | H226: 0.1944444444
A227: t-test p-val | D227: =_xlfn.T.TEST(C203:C222,D203:D222,2,3) -> 0.2221435621 | F227: =_xlfn.T.TEST(E203:E222,F203:F222,2,3) -> 0.005959429965 | G227: ** | H227: =_xlfn.T.TEST(G203:G222,H203:H222,2,3) -> 0.0003718577384 | I227: ***
D228: expected | F228: strange!!! | H228: expected
A251: 14 dpt
A252: biol repl | B252: larva No | C252: egfp_NI | D252: egfp_MeJA | E252: alas_NI | F252: alas_MeJA | G252: JHBP_NI | H252: JHBP_MeJA
A253: 1 | B253: 1 | C253: 68 | D253: 52 | E253: 12 | F253: 58 | G253: 44 | H253: 70
A254: 1 | B254: 2 | C254: 73 | D254: 75 | E254: 26 | F254: 56 | G254: 100 | H254: 61
A255: 1 | B255: 3 | C255: 108 | D255: 51 | E255: 16 | F255: 27 | G255: 111 | H255: 33
A256: 1 | B256: 4 | C256: 105 | D256: 44 | E256: 27 | F256: 62 | G256: 79 | H256: 73
A257: 1 | B257: 5 | C257: 88 | D257: 66 | E257: dead | F257: 23 | G257: 46 | H257: 19
A258: 1 | B258: 6 | C258: 20 | D258: dead | E258: dead | F258: 9 | G258: 74 | H258: 45
A259: 1 | B259: 7 | C259: dead | D259: dead | E259: dead | F259: dead | G259: 68 | H259: dead
A260: 1 | B260: 8 | C260: dead | D260: dead | E260: dead | F260: dead | G260: dead | H260: dead
A261: 1 | B261: 9 | C261: dead | D261: dead | E261: dead | F261: dead | G261: dead | H261: dead
A262: 1 | B262: 10 | C262: dead | D262: dead | E262: dead | F262: dead | G262: dead | H262: dead
A263: 2 | B263: 1 | C263: 90 | D263: 35 | E263: 27 | F263: 35 | G263: 90 | H263: 21
A264: 2 | B264: 2 | C264: 37 | D264: 33 | E264: 20 | F264: 40 | G264: 106 | H264: 39
A265: 2 | B265: 3 | C265: 69 | D265: 96 | E265: 16 | F265: 40 | G265: 62 | H265: dead
A266: 2 | B266: 4 | C266: 75 | D266: 50 | E266: 37 | F266: dead | G266: 106 | H266: dead
A267: 2 | B267: 5 | C267: 88 | D267: 31 | E267: 14 | F267: dead | G267: 76 | H267: dead
A268: 2 | B268: 6 | C268: 81 | D268: dead | E268: dead | F268: dead | G268: 86 | H268: dead
A269: 2 | B269: 7 | C269: dead | D269: dead | E269: dead | F269: dead | G269: 54 | H269: dead
A270: 2 | B270: 8 | C270: dead | D270: dead | E270: dead | F270: dead | G270: 55 | H270: dead
A271: 2 | B271: 9 | C271: dead | D271: dead | E271: dead | F271: dead | G271: dead | H271: dead
A272: 2 | B272: 10 | C272: dead | D272: dead | E272: dead | F272: dead | G272: dead | H272: dead
A273: average: | C273: =AVERAGE(C253:C272) -> 75.16666667 | D273: =AVERAGE(D253:D272) -> 53.3 | E273: =AVERAGE(E253:E272) -> 21.66666667 | F273: 38.88888889 | G273: 77.13333333 | H273: 45.125
A274: median: | C274: =MEDIAN(C253:C272) -> 78 | D274: =MEDIAN(D253:D272) -> 50.5 | E274: =MEDIAN(E253:E272) -> 20 | F274: 40 | G274: 76 | H274: 42
A275: SE: | C275: =STDEV(C253:C272)/SQRT(COUNTA(C253:C272)) -> 5.699149325 | D275: =STDEV(D253:D272)/SQRT(COUNTA(D253:D272)) -> 4.59716096 | E275: 1.820027472 | F275: 3.95038676 | G275: 4.999904761 | H275: 4.703247358
A276: dead l%: | C276: =COUNTIF(C253:C272,"dead")/36 -> 0.2222222222 | D276: =COUNTIF(D253:D272,"dead")/36 -> 0.2777777778 | E276: 0.3055555556 | F276: 0.3055555556 | G276: 0.1388888889 | H276: 0.3333333333
A277: t-test p-val | D277: =_xlfn.T.TEST(C253:C272,D253:D272,2,3) -> 0.03759550357 | E277: * | F277: =_xlfn.T.TEST(E253:E272,F253:F272,2,3) -> 0.0219627184 | G277: * | H277: =_xlfn.T.TEST(G253:G272,H253:H272,2,3) -> 0.003889652158 | I277: **
D278: expected | F278: strange!!! | H278: expected
A280: END OF EXPERIMENT
